Workbook

Sheet Input Data
C2: GA Paid on Waltham energy
C3: 2017 | F3: =C3+1 -> 2018 | I3: =F3+1 -> 2019 | L3: =I3+1 -> 2020 | O3: =L3+1 -> 2021 | R3: =O3+1 -> 2022 | U3: =R3+1 -> 2023
C4: Brookfield kWh | D4: GA ($/kWh) | E4: Brookfield GA | F4: Brookfield kWh | G4: GA ($/kWh) | H4: Brookfield GA | I4: Brookfield kWh | J4: GA ($/kWh) | K4: Brookfield GA | L4: Brookfield kWh | M4: GA ($/kWh) | N4: Brookfield GA | O4: Brookfield kWh | P4: GA ($/kWh) | Q4: Brookfield GA | R4: Brookfield kWh | S4: GA ($/kWh) | T4: Brookfield GA | U4: Brookfield kWh | V4: GA ($/kWh) | W4: Brookfield GA
B5: January | C5: 2134510 | D5: 0.08227 | E5: 175606.14 | F5: 2813138 | G5: 0.06736 | H5: 189492.97 | I5: 2196000 | J5: 0.08092 | K5: 177700.32 | L5: 2089120 | M5: 0.10232 | N5: 213758.76 | O5: 1805830 | P5: 0.08297 | Q5: 149829.72 | R5: 857320 | S5: 0.04353 | T5: 37319.14 | U5: 2581360 | V5: 0.05377 | W5: 138799.73
B6: February | C6: 2975320 | D6: 0.08639 | E6: 257037.89 | F6: 3302320 | G6: 0.08167 | H6: 269700.48 | I6: 2533990 | J6: 0.08812 | K6: 223295.2 | L6: 1688900 | M6: 0.11331 | N6: 191369.26 | O6: 1373740 | P6: 0.05042 | Q6: 69263.97 | R6: 640680 | S6: 0.05246 | T6: 33610.07 | U6: 2016690 | V6: 0.08249 | W6: 166356.76
B7: March | C7: 3883530 | D7: 0.07135 | E7: 277089.86 | F7: 4336290 | G7: 0.09481 | H7: 411123.66 | I7: 4480180 | J7: 0.08041 | K7: 360251.28 | L7: 3223950 | M7: 0.11942 | N7: 385004.11 | O7: 2724430 | P7: 0.0908 | Q7: 247378.25 | R7: 2937880 | S7: 0.05941 | T7: 174539.45 | U7: 2816580 | V7: 0.08031 | W7: 226199.54
B8: April | C8: 4799720 | D8: 0.10778 | E8: 517313.82 | F8: 4359310 | G8: 0.09959 | H8: 434143.68 | I8: 2161930 | J8: 0.12333 | K8: 266630.83 | L8: 3323490 | M8: 0.15057 | N8: 500417.89 | O8: 4398280 | P8: 0.10934 | Q8: 480907.93 | R8: 4152090 | S8: 0.08293 | T8: 344332.83 | U8: 4255470 | V8: 0.09853 | W8: 419291.46
B9: May | C9: 5096570 | D9: 0.12307 | E9: 627234.87 | F9: 5824650 | G9: 0.10791 | H9: 628537.98 | I9: 573300 | J9: 0.12604 | K9: 72258.73 | L9: 4369220 | M9: 0.14718 | N9: 643061.8 | O9: 3333080 | P9: 0.10054 | Q9: 335107.86 | R9: 5665250 | S9: 0.08475 | T9: 480129.94 | U9: 5063950 | V9: 0.09962 | W9: 504470.69
B10: June | C10: 5673460 | D10: 0.11848 | E10: 672191.54 | F10: 5836836 | G10: 0.11896 | H10: 694350.01 | I10: 2446170 | J10: 0.13728 | K10: 335810.21 | L10: 4206240 | M10: 0.1284 | N10: 540081.22 | O10: 1333260 | P10: 0.08632 | Q10: 115087.01 | R10: 5632520 | S10: 0.07868 | T10: 443166.68 | U10: 2509010 | V10: 0.08293 | W10: 208072.2
B11: July | C11: 5380900 | D11: 0.1128 | E11: 606965.52 | F11: 2286590 | G11: 0.07737 | H11: 176913.46 | I11: 3676680 | J11: 0.09645 | K11: 354615.79 | L11: 3494520 | M11: 0.09902 | N11: 346027.37 | O11: 3685060 | P11: 0.0736 | Q11: 271220.41 | R11: 4101700 | S11: 0.04008 | T11: 164396.14 | U11: 5180845.6 | V11: =W11/U11 -> 0.04948999831 | W11: =128200.02*2 -> 256400.04
B12: August | C12: 2756940 | D12: 0.10109 | E12: 278699.06 | F12: 2719400 | G12: 0.0749 | H12: 203683.06 | I12: 3537380 | J12: 0.12607 | K12: 445957.5 | L12: 4660990 | M12: 0.10348 | N12: 482319.24 | O12: 4492060 | P12: 0.04599 | Q12: 206589.84 | R12: 2637510 | S12: 0.00499 | T12: 13161.18 | U12: 5107690 | V12: =W12/U12 -> 0.07605999973 | W12: =194245.45*2 -> 388490.9
B13: September | C13: 3210200 | D13: 0.08864 | E13: 284552.13 | F13: 3075670 | G13: 0.08584 | H13: 264015.51 | I13: 2684440 | J13: 0.12263 | K13: 329192.88 | L13: 4094420 | M13: 0.12176 | N13: 498536.58 | O13: 2697760 | P13: 0.07565 | Q13: 204085.55 | R13: 4344770 | S13: 0.03241 | T13: 140814 | U13: 3976555.51 | V13: 0.05093 | W13: 202525.97
B14: October | C14: 2748080 | D14: 0.12563 | E14: 345241.29 | F14: 1716320 | G14: 0.12059 | H14: 206971.03 | I14: 2841830 | J14: 0.1368 | K14: 388762.35 | L14: 3886120 | M14: 0.12806 | N14: 497656.53 | O14: 5203800 | P14: 0.05244 | Q14: 272887.28 | R14: 2424300 | S14: 0.05771 | T14: 139906.35
B15: November | C15: 5298050 | D15: 0.09704 | E15: 514122.77 | F15: 1807480 | G15: 0.09855 | H15: 178127.16 | I15: 1506800 | J15: 0.09953 | K15: 149971.81 | L15: 3140570 | M15: 0.11705 | N15: 367603.72 | O15: 3090470 | P15: 0.05417 | Q15: 167410.76 | R15: 419910 | S15: 0.06989 | T15: 29347.51
B16: December | C16: 3896110 | D16: 0.09207 | E16: 358714.85 | F16: 3020740 | G16: 0.07404 | H16: 223655.59 | I16: 1996200 | J16: 0.09321 | K16: 186065.8 | L16: 1979050 | M16: 0.10558 | N16: 208948.1 | O16: 2661390 | P16: 0.05968 | Q16: 158831.75 | R16: 947060 | S16: 0.03427 | T16: 32455.75
B17: Total | C17: =SUM(C5:C16) -> 47853390 | D17: =E17/C17 -> 0.102704735 | E17: =SUM(E5:E16) -> 4914769.74 | F17: =SUM(F5:F16) -> 41098744 | G17: =H17/F17 -> 0.09442416513 | H17: =SUM(H5:H16) -> 3880714.59 | I17: =SUM(I5:I16) -> 30634900 | J17: =K17/I17 -> 0.1074105905 | K17: =SUM(K5:K16) -> 3290512.7 | L17: =SUM(L5:L16) -> 40156590 | M17: =N17/L17 -> 0.1213943858 | N17: =SUM(N5:N16) -> 4874784.58 | O17: =SUM(O5:O16) -> 36799160 | P17: =Q17/O17 -> 0.07278971395 | Q17: =SUM(Q5:Q16) -> 2678600.33 | R17: =SUM(R5:R16) -> 34760990 | S17: =T17/R17 -> 0.05849025128 | T17: =SUM(T5:T16) -> 2033179.04 | U17: =SUM(U5:U16) -> 33508151.11 | V17: =W17/U17 -> 0.07492527062 | W17: =SUM(W5:W16) -> 2510607.29
B20: Loss-Adjusted Customer kWh Volumes
C21: 2017 | D21: 2018 | E21: 2019 | F21: 2020 | G21: 2021 | H21: 2022 | I21: 2023 (Jan-May)
B22: January | D22: =AVERAGE($F22:$H22)/AVERAGE($F$34:$H$34)*D$34 -> 19993015.35 | E22: =AVERAGE($F22:$H22)/AVERAGE($F$34:$H$34)*E$34 -> 19851792.12 | F22: 18532699.56 | G22: 18108281 | H22: 21815284 | I22: 18297978.79
B23: February | D23: =AVERAGE($F23:$H23)/AVERAGE($F$34:$H$34)*D$34 -> 18053329.09 | E23: 17925807.08 | F23: 17122074.29 | G23: 17058986 | H23: 18603883 | I23: 17127145.93
B24: March | D24: 17272986.43 | E24: 17150976.47 | F24: 16257560.63 | G24: 16774215 | H24: 17471575 | I24: 17018167.98
B25: April | D25: 14320657.57 | E25: 14219501.76 | F25: 14169162.85 | G25: 13283172.32 | H25: 14418895 | I25: 14122661.54
B26: May | D26: 13951225.09 | E26: 13852678.82 | F26: 13581227.42 | G26: 13525305.4 | H26: 13684538 | I26: 13523423.94
B27: June | D27: 14765624.3 | E27: 14661325.41 | F27: 14310807.1 | G27: 14899498.07 | H27: 13961934 | I27: 0
B28: July | D28: 16704937.04 | E28: 16586939.57 | F28: 17697701.82 | G28: 15280453.51 | H28: 15864313 | I28: 0
B29: August | D29: 16536185.43 | E29: 16419379.97 | F29: 15178815.48 | G29: 17447380.12 | H29: 15722871 | I29: 0
B30: September | D30: 13373983.72 | E30: 13279514.87 | F30: 12631571.83 | G30: 13047454.85 | H30: 13424286 | I30: 0
B31: October | D31: 14179379.49 | E31: 14079221.62 | F31: 13822431.74 | G31: 13724579.73 | H31: 13911145 | I31: 0
B32: November | D32: =AVERAGE($F32:$H32)/AVERAGE($F$34:$H$34)*D$34 -> 15836289.69 | E32: 15724428.03 | F32: 14799407.27 | G32: 15438886 | H32: 16064394.13 | I32: 0
B33: December | D33: 18642255.81 | E33: 18510573.84 | F33: 18400520.98 | G33: 18096479 | H33: 18009867.47 | I33: 0
B34: Total | C34: 185695254 | D34: 193629869 | E34: 192262139.6 | F34: =SUM(F22:F33) -> 186503981 | G34: =SUM(G22:G33) -> 186684691 | H34: =SUM(H22:H33) -> 192952985.6 | I34: =SUM(I22:I33) -> 80089378.18
C35: 177934181 | D35: 185198705 | E35: 183512928.4
B37: RRR Volumes
C38: 2017 | D38: 2018 | E38: 2019 | F38: 2020 | G38: 2021 | H38: 2022 | I38: 2023
B39: Total | C39: 177934181 | D39: 185198705 | E39: 183512928 | F39: 178353238 | G39: 182112496 | H39: 185090366
B42: Waltham Volumes (kWh)
B43: Month | C43: Actual | I43: Forecast (4-Year Average)
C44: 2017 | D44: 2018 | E44: 2019 | F44: 2020 | G44: 2021 | H44: 2022 | I44: ="Average "&$C$44&" to "&C44 -> Average 2017 to 2017 | J44: ="Average "&$C$44&" to "&D44 -> Average 2017 to 2018 | K44: ="Average "&$C$44&" to "&E44 -> Average 2017 to 2019 | L44: ="Average "&C44&" to "&F44 -> Average 2017 to 2020 | M44: ="Average "&D44&" to "&G44 -> Average 2018 to 2021 | N44: ="Average "&E44&" to "&H44 -> Average 2019 to 2022
B45: January | C45: =C5 -> 2134510 | D45: =F5 -> 2813138 | E45: =I5 -> 2196000 | F45: =L5 -> 2089120 | G45: =O5 -> 1805830 | H45: =R5 -> 857320 | I45: =AVERAGE($C45:C45) -> 2134510 | J45: =AVERAGE($C45:D45) -> 2473824 | K45: =AVERAGE($C45:E45) -> 2381216 | L45: =AVERAGE(C45:F45) -> 2308192 | M45: =AVERAGE(D45:G45) -> 2226022 | N45: =AVERAGE(E45:H45) -> 1737067.5
B46: February | C46: 2975320 | D46: 3302320 | E46: 2533990 | F46: 1688900 | G46: 1373740 | H46: 640680 | I46: =AVERAGE($C46:C46) -> 2975320 | J46: =AVERAGE($C46:D46) -> 3138820 | K46: =AVERAGE($C46:E46) -> 2937210 | L46: 2625132.5 | M46: 2224737.5 | N46: 1559327.5
B47: March | C47: 3883530 | D47: 4336290 | E47: 4480180 | F47: 3223950 | G47: 2724430 | H47: 2937880 | I47: =AVERAGE($C47:C47) -> 3883530 | J47: =AVERAGE($C47:D47) -> 4109910 | K47: =AVERAGE($C47:E47) -> 4233333.333 | L47: 3980987.5 | M47: 3691212.5 | N47: 3341610
B48: April | C48: 4799720 | D48: 4359310 | E48: 2161930 | F48: 3323490 | G48: 4398280 | H48: 4152090 | I48: =AVERAGE($C48:C48) -> 4799720 | J48: =AVERAGE($C48:D48) -> 4579515 | K48: =AVERAGE($C48:E48) -> 3773653.333 | L48: 3661112.5 | M48: 3560752.5 | N48: 3508947.5
B49: May | C49: 5096570 | D49: 5824650 | E49: 573300 | F49: 4369220 | G49: 3333080 | H49: 5665250 | I49: =AVERAGE($C49:C49) -> 5096570 | J49: =AVERAGE($C49:D49) -> 5460610 | K49: =AVERAGE($C49:E49) -> 3831506.667 | L49: 3965935 | M49: 3525062.5 | N49: 3485212.5
B50: June | C50: 5673460 | D50: 5836836 | E50: 2446170 | F50: 4206240 | G50: 1333260 | H50: 5632520 | I50: =AVERAGE($C50:C50) -> 5673460 | J50: =AVERAGE($C50:D50) -> 5755148 | K50: =AVERAGE($C50:E50) -> 4652155.333 | L50: 4540676.5 | M50: 3455626.5 | N50: 3404547.5
B51: July | C51: 5380900 | D51: 2286590 | E51: 3676680 | F51: 3494520 | G51: 3685060 | H51: 4101700 | I51: =AVERAGE($C51:C51) -> 5380900 | J51: =AVERAGE($C51:D51) -> 3833745 | K51: =AVERAGE($C51:E51) -> 3781390 | L51: 3709672.5 | M51: 3285712.5 | N51: 3739490
B52: August | C52: 2756940 | D52: 2719400 | E52: 3537380 | F52: 4660990 | G52: 4492060 | H52: 2637510 | I52: =AVERAGE($C52:C52) -> 2756940 | J52: =AVERAGE($C52:D52) -> 2738170 | K52: =AVERAGE($C52:E52) -> 3004573.333 | L52: 3418677.5 | M52: 3852457.5 | N52: 3831985
B53: September | C53: 3210200 | D53: 3075670 | E53: 2684440 | F53: 4094420 | G53: 2697760 | H53: 4344770 | I53: =AVERAGE($C53:C53) -> 3210200 | J53: =AVERAGE($C53:D53) -> 3142935 | K53: =AVERAGE($C53:E53) -> 2990103.333 | L53: 3266182.5 | M53: 3138072.5 | N53: 3455347.5
B54: October | C54: 2748080 | D54: 1716320 | E54: 2841830 | F54: 3886120 | G54: 5203800 | H54: 2424300 | I54: =AVERAGE($C54:C54) -> 2748080 | J54: =AVERAGE($C54:D54) -> 2232200 | K54: =AVERAGE($C54:E54) -> 2435410 | L54: 2798087.5 | M54: 3412017.5 | N54: 3589012.5
B55: November | C55: 5298050 | D55: 1807480 | E55: 1506800 | F55: 3140570 | G55: 3090470 | H55: 419910 | I55: =AVERAGE($C55:C55) -> 5298050 | J55: =AVERAGE($C55:D55) -> 3552765 | K55: =AVERAGE($C55:E55) -> 2870776.667 | L55: 2938225 | M55: 2386330 | N55: 2039437.5
B56: December | C56: 3896110 | D56: 3020740 | E56: 1996200 | F56: 1979050 | G56: 2661390 | H56: 947060 | I56: =AVERAGE($C56:C56) -> 3896110 | J56: =AVERAGE($C56:D56) -> 3458425 | K56: =AVERAGE($C56:E56) -> 2971016.667 | L56: 2723025 | M56: 2414345 | N56: 1895925
B57: Total | C57: =SUM(C45:C56) -> 47853390 | D57: =SUM(D45:D56) -> 41098744 | E57: =SUM(E45:E56) -> 30634900 | F57: =SUM(F45:F56) -> 40156590 | G57: 36799160 | H57: 34760990 | I57: =SUM(I45:I56) -> 47853390 | J57: 44476067 | K57: =SUM(K45:K56) -> 39862344.67 | L57: 39935906 | M57: =SUM(M45:M56) -> 37172348.5 | N57: =SUM(N45:N56) -> 35587910
B59: Global Adjustment Forecast
B60: RPP Report | C60: $/MWh | D60: RPP Report
B61: 2019 | C61: 102.22 | D61: Apr. 2018 Report
B62: 2020 | C62: 106.94 | D62: Oct. 2019 Report
B63: 2021 | C63: 109.47 | D63: Oct. 2020 Report
B64: 2022 | C64: 68.78 | D64: Oct. 2021 Report
B65: 2023 | C65: 36.04 | D65: Oct. 2022 Report
B66: 2024 | C66: 72.86 | D66: Oct. 2023 Report
B68: DVA Variance Interest Rates
C69: Interest
B70: Q1 2019 | C70: 2.45
B71: Q2 2019 | C71: 2.18
B72: Q3 2019 | C72: 2.18
B73: Q4 2019 | C73: 2.18
B74: Q1 2020 | C74: 2.18
B75: Q2 2020 | C75: 2.18
B76: Q3 2020 | C76: 0.57
B77: Q4 2020 | C77: 0.57
B78: Q1 2021 | C78: 0.57
B79: Q2 2021 | C79: 0.57
B80: Q3 2021 | C80: 0.57
B81: Q4 2021 | C81: 0.57
B82: Q1 2022 | C82: 0.57
B83: Q2 2022 | C83: 1.02
B84: Q3 2022 | C84: 2.2
B85: Q4 2022 | C85: 3.87
B86: Q1 2023 | C86: 4.73
B87: Q2 2023 | C87: 4.98
B88: Q3 2023 | C88: 4.98
B89: Q4 2023 | C89: 5.49

Sheet Power Purchased True-Up
G2: Power Purchased True-Up Rate
H3: Customer Volumes (kWh) | I3: Rate ($/kWh) | J3: Credited to Customers | K3: GA Savings | L3: Purchasd Power Adjustmnet | M3: Net GA Savings | N3: Variance Disposition & Overcollection | O3: Owed to Customers | P3: Variance | Q3: Cumulative Variance | R3: Interest % | S3: Interest $ | T3: Lagged Interest | U3: Lagged Interest
H4: A | I4: B | J4: C = A * B | K4: D | L4: E = D / 2 | M4: F = D / 2 | N4: G | O4: H = F + G | P4: I = H - C | Q4: J | R4: K | S4: L = J * L
C5: Power Purchased True-Up Balance and Rate Calculations | F5: Notes | H5: Total Customer kWh Volumes (metered) | I5: Forecast rate (changes each May) | J5: Actual amount credited to customers | K5: Actual avoided GA (Waltham volumes * GA $/kWh) | L5: Actual half paid to Brookfield | M5: Actual half to be credited to customers | N5: Adjustment for audited variances (3-year lag) and Overcollection | O5: Actual amount to be credit to customers, including variances and overcollection | P5: Difference between what was actually credited to customers and what should be | Q5: Cumulative variance used to calculate variances | R5: OEB's DVA interest rate | S5: Monthly interest on variances | T5: Monthly interest on variances in lag year 1 | U5: Monthly interest on variances in lag year 2
A6: z | B6: 2024 | D6: Forecast Data | G6: January
C7: Forecast Waltham Volumes (kWh) | D7: ='Input Data'!N57 -> 35587910 | F7: 2019-2022 Average Waltham Volumes | G7: February | W7: Summary
C8: Forecast GA ($/kWh) | D8: ='Input Data'!C66/1000 -> 0.07286 | F8: Oct. 2023 RPP Report | G8: March | X8: GA Savings on Waltham Energy | Z8: =K18 -> 0 | AA8: Total GA avoided (Waltham kWh * GA $/kWh)
C9: Total Forecast GA Savings ($) | D9: =D7*D8 -> 2592935.123 | G9: April | X9: Purchased Power-Adjustment | Z9: =L18 -> 0 | AA9: Paid to Brookfield
C10: Forecast net GA Savings ($) | E10: =D9/2 -> 1296467.561 | F10: Total savings * 50% | G10: May | X10: Customer Share | Y10: =M18 -> 0 | AA10: Amount that should be credited to customers
C11: Variance from previous years ($) | F11: (No variance in this year) | G11: June | X11: Variance Disposition | AA11: Adjustment for earlier variances (3-year lag)
C12: Interest on variance ($) | F12: =F11 -> (No variance in this year) | G12: July | I12: =E17 -> -0.007 | J12: =H12*I12 -> 0 | L12: =-K12/2 -> 0 | M12: =-K12/2 -> 0 | O12: =M12+N12 -> 0 | P12: =O12-J12 -> 0 | Q12: =P12+Q11 -> 0 | R12: ='Input Data'!$C$85/100/12 -> 0.003225 | S12: =Q12*R12 -> 0 | X12: Owed to Customers | Z12: =Y11+Y10 -> 0 | AA12: Amount to be credited to customers including variances
C13: Forecast Power Purchased True-Up Balance ($) | E13: =SUM(E10:E12) -> 1296467.561 | G13: August | I13: =I12 -> -0.007 | J13: 0 | L13: 0 | M13: 0 | O13: 0 | P13: 0 | Q13: 0 | R13: ='Input Data'!$C$85/100/12 -> 0.003225 | S13: 0 | X13: Credited to Customers | Z13: =J18 -> 0 | AA13: Actual amount credited to customers based on actual volumes and forecast Power Purchased True-Up
G14: September | I14: -0.007 | J14: 0 | L14: 0 | M14: 0 | O14: 0 | P14: 0 | Q14: 0 | R14: ='Input Data'!$C$85/100/12 -> 0.003225 | S14: 0 | X14: Variance | Z14: =Z12-Z13 -> 0 | AA14: Variance to be disposed in 2027
C15: Total Customer Volumes (kWh) | D15: ='Input Data'!H39 -> 185090366 | F15: 2022 Actual Volumes (RRR values in IRM model) | G15: October | I15: -0.007 | J15: 0 | L15: 0 | M15: 0 | O15: 0 | P15: 0 | Q15: 0 | R15: ='Input Data'!$C$85/100/12 -> 0.003225 | S15: 0 | X15: Interest on Variance | Z15: =S18+T31+U44 -> 0 | AA15: Interest on variance to be disposed in 2027
G16: November | I16: -0.007 | J16: 0 | L16: 0 | M16: 0 | O16: 0 | P16: 0 | Q16: 0 | R16: ='Input Data'!$C$85/100/12 -> 0.003225 | S16: 0
C17: Power Purchased True-Up-2024 ($/kWh) | E17: =ROUND(-E13/D15,4) -> -0.007 | G17: December | I17: -0.007 | J17: 0 | L17: 0 | M17: 0 | O17: 0 | P17: 0 | Q17: 0 | R17: ='Input Data'!$C$85/100/12 -> 0.003225 | S17: 0
G18: Total | H18: =SUM(H6:H17) -> 0 | J18: =SUM(J6:J17) -> 0 | K18: 0 | L18: 0 | M18: 0 | N18: 0 | O18: 0 | P18: 0 | S18: =SUM(S6:S17) -> 0
B19: 2025 | G19: January | I19: =I17 -> -0.007 | J19: =H19*I19 -> 0 | L19: =-K19/2 -> 0 | M19: =-K19/2 -> 0 | O19: =M19+N19 -> 0 | P19: =O19-J19 -> 0 | Q19: =P19 -> 0 | R19: ='Input Data'!$C$85/100/12 -> 0.003225 | S19: =Q19*R19 -> 0 | T19: =(P18+S18)*R19 -> 0
C20: Forecast Waltham Volumes (kWh) | D20: ='Input Data'!M84 -> 0 | F20: 2020-2023 Average Waltham Volumes | G20: February | I20: =I19 -> -0.007 | J20: 0 | L20: 0 | M20: 0 | O20: =M20+N20 -> 0 | P20: 0 | Q20: =P20+Q19 -> 0 | R20: ='Input Data'!$C$85/100/12 -> 0.003225 | S20: 0 | T20: =(P18+S18)*R20 -> 0 | W20: Summary
C21: Forecast GA ($/kWh) | D21: ='Input Data'!C92/1000 -> 0 | F21: Oct. 2024 RPP Report | G21: March | I21: =I20 -> -0.007 | J21: 0 | L21: 0 | M21: 0 | O21: 0 | P21: 0 | Q21: 0 | R21: ='Input Data'!$C$85/100/12 -> 0.003225 | S21: 0 | T21: =(P18+S18)*R21 -> 0 | X21: GA Savings | Z21: =K31 -> 0 | AA21: Total GA avoided (Waltham kWh * GA $/kWh)
C22: Total Forecast GA Savings ($) | D22: =D20*D21 -> 0 | G22: April | I22: =I21 -> -0.007 | J22: 0 | L22: 0 | M22: 0 | O22: 0 | P22: 0 | Q22: 0 | R22: ='Input Data'!$C$85/100/12 -> 0.003225 | S22: 0 | T22: =(P18+S18)*R22 -> 0 | X22: Purchased Power-Adjustment | Z22: =L31 -> 0 | AA22: Paid to Brookfield
C23: Forecast net GA Savings ($) | E23: =D22/2 -> 0 | F23: Total savings * 50% | G23: May | I23: =E30 -> -0.0024 | J23: 0 | L23: 0 | M23: 0 | N23: =($E$26)/12 -> 37169.08459 | O23: 37169.08459 | P23: 37169.08459 | Q23: 37169.08459 | R23: ='Input Data'!$C$85/100/12 -> 0.003225 | S23: 119.8702978 | T23: =(P18+S18)*R23 -> 0 | X23: Customer Share | Y23: =M31 -> 0 | AA23: Amount that should be credited to customers
C24: Variance from previous years ($) | F24: (No variance in this year) | G24: June | I24: =I23 -> -0.0024 | J24: 0 | L24: 0 | M24: 0 | N24: 37169.08459 | O24: 37169.08459 | P24: 37169.08459 | Q24: 74338.16919 | R24: ='Input Data'!$C$85/100/12 -> 0.003225 | S24: 239.7405956 | T24: =(P18+S18)*R24 -> 0 | X24: Variance Disposition | AA24: Adjustment for earlier variances (3-year lag)
C25: Interest on variance ($) | F25: =F24 -> (No variance in this year) | G25: July | I25: =I24 -> -0.0024 | J25: 0 | L25: 0 | M25: 0 | N25: 37169.08459 | O25: 37169.08459 | P25: 37169.08459 | Q25: 111507.2538 | R25: ='Input Data'!$C$85/100/12 -> 0.003225 | S25: 359.6108935 | T25: =(P18+S18)*R25 -> 0 | X25: Owed to Customers | Z25: =Y24+Y23 -> 0 | AA25: Amount to be credited to customers including variances
C26: Dispostion of 2023 Overcollection | E26: =-'2023-24 Overcollection'!P9-'2023-24 Overcollection'!P10 -> 446029.0151 | F26: Actual 2023 Overcollection | G26: August | I26: -0.0024 | J26: 0 | L26: 0 | M26: 0 | N26: 37169.08459 | O26: 37169.08459 | P26: 37169.08459 | Q26: 148676.3384 | R26: ='Input Data'!$C$85/100/12 -> 0.003225 | S26: 479.4811913 | T26: =(P18+S18)*R26 -> 0 | X26: Credited to Customers | Z26: =J31 -> 0 | AA26: Actual amount credited to customers based on actual volumes and forecast Power Purchased True-Up
C27: Forecast Power Purchased True-Up Balance ($) | E27: =SUM(E23:E26) -> 446029.0151 | G27: September | I27: -0.0024 | J27: 0 | L27: 0 | M27: 0 | N27: 37169.08459 | O27: 37169.08459 | P27: 37169.08459 | Q27: 185845.423 | R27: ='Input Data'!$C$85/100/12 -> 0.003225 | S27: 599.3514891 | T27: =(P18+S18)*R27 -> 0 | X27: Variance | Z27: =Z25-Z26 -> 0 | AA27: Variance to be disposed in 2027
G28: October | I28: -0.0024 | J28: 0 | L28: 0 | M28: 0 | N28: 37169.08459 | O28: 37169.08459 | P28: 37169.08459 | Q28: 223014.5076 | R28: ='Input Data'!$C$85/100/12 -> 0.003225 | S28: 719.2217869 | T28: =(P18+S18)*R28 -> 0 | X28: Interest on Variance | Z28: =S31+T44+U57 -> 28116.23966 | AA28: Interest on variance to be disposed in 2027
C29: Total Customer Volumes (kWh) | D29: =D15 -> 185090366 | F29: 2023 Actual Volumes (RRR values in IRM model) | G29: November | I29: -0.0024 | J29: 0 | L29: 0 | M29: 0 | N29: 37169.08459 | O29: 37169.08459 | P29: 37169.08459 | Q29: 260183.5922 | R29: ='Input Data'!$C$85/100/12 -> 0.003225 | S29: 839.0920847 | T29: =(P18+S18)*R29 -> 0
C30: Power Purchased True-Up-2025 ($/kWh) | E30: =ROUND(-E27/D29,4) -> -0.0024 | G30: December | I30: -0.0024 | J30: 0 | L30: 0 | M30: 0 | N30: 37169.08459 | O30: 37169.08459 | P30: 37169.08459 | Q30: 297352.6768 | R30: ='Input Data'!$C$85/100/12 -> 0.003225 | S30: 958.9623825 | T30: =(P18+S18)*R30 -> 0
G31: Total | H31: =SUM(H19:H30) -> 0 | J31: =SUM(J19:J30) -> 0 | K31: 0 | L31: 0 | M31: 0 | N31: 297352.6768 | O31: 297352.6768 | P31: 297352.6768 | S31: =SUM(S19:S30) -> 4315.330721 | T31: =SUM(T19:T30) -> 0
B32: 2026 | G32: January | I32: =I30 -> -0.0024 | J32: =H32*I32 -> 0 | L32: =-K32/2 -> 0 | M32: =-K32/2 -> 0 | N32: 37169.08459 | O32: =M32+N32 -> 37169.08459 | P32: =O32-J32 -> 37169.08459 | Q32: =P32 -> 37169.08459 | R32: ='Input Data'!$C$85/100/12 -> 0.003225 | S32: =Q32*R32 -> 119.8702978 | T32: =(P31+S31)*R32 -> 972.8793241 | U32: =(P18+S18+T31)*R32 -> 0
C33: Forecast Waltham Volumes (kWh) | D33: ='Input Data'!M97 -> 0 | F33: 2021-2024 Average Waltham Volumes | G33: February | I33: =I32 -> -0.0024 | J33: 0 | L33: 0 | M33: 0 | N33: 37169.08459 | O33: 37169.08459 | P33: 37169.08459 | Q33: =P33+Q32 -> 74338.16919 | R33: ='Input Data'!$C$85/100/12 -> 0.003225 | S33: 239.7405956 | T33: =(P31+S31)*R33 -> 972.8793241 | U33: =(P18+S18+T31)*R33 -> 0 | W33: Summary
C34: Forecast GA ($/kWh) | D34: ='Input Data'!C105/1000 -> 0 | F34: Oct. 2024 RPP Report | G34: March | I34: =I33 -> -0.0024 | J34: 0 | L34: 0 | M34: 0 | N34: 37169.08459 | O34: 37169.08459 | P34: 37169.08459 | Q34: 111507.2538 | R34: ='Input Data'!$C$85/100/12 -> 0.003225 | S34: 359.6108935 | T34: =(P31+S31)*R34 -> 972.8793241 | U34: =(P18+S18+T31)*R34 -> 0 | X34: GA Savings | Z34: =K44 -> 0 | AA34: Total GA avoided (Waltham kWh * GA $/kWh)
C35: Total Forecast GA Savings ($) | D35: =D33*D34 -> 0 | G35: April | I35: =I34 -> -0.0024 | J35: 0 | L35: 0 | M35: 0 | N35: 37169.08459 | O35: 37169.08459 | P35: 37169.08459 | Q35: 148676.3384 | R35: ='Input Data'!$C$85/100/12 -> 0.003225 | S35: 479.4811913 | T35: =(P31+S31)*R35 -> 972.8793241 | U35: =(P18+S18+T31)*R35 -> 0 | X35: Purchased Power-Adjustment | Z35: =L44 -> 0 | AA35: Paid to Brookfield
C36: Forecast net GA Savings ($) | E36: =D35/2 -> 0 | F36: Total savings * 50% | G36: May | I36: =E43 -> 0 | J36: 0 | L36: 0 | M36: 0 | N36: =($E$39)/12 -> 0 | O36: 0 | P36: 0 | Q36: 148676.3384 | R36: ='Input Data'!$C$85/100/12 -> 0.003225 | S36: 479.4811913 | T36: =(P31+S31)*R36 -> 972.8793241 | U36: =(P18+S18+T31)*R36 -> 0 | X36: Customer Share | Y36: =M44 -> 0 | AA36: Amount that should be credited to customers
C37: Variance from previous years ($) | F37: (No variance in this year) | G37: June | I37: =I36 -> 0 | J37: 0 | L37: 0 | M37: 0 | N37: =($E$39)/12 -> 0 | O37: 0 | P37: 0 | Q37: 148676.3384 | R37: ='Input Data'!$C$85/100/12 -> 0.003225 | S37: 479.4811913 | T37: =(P31+S31)*R37 -> 972.8793241 | U37: =(P18+S18+T31)*R37 -> 0 | X37: Variance Disposition | Y37: =Z14+Z15 -> 0 | AA37: Adjustment for earlier variances (3-year lag)
C38: Interest on variance ($) | F38: =F37 -> (No variance in this year) | G38: July | I38: =I37 -> 0 | J38: 0 | L38: 0 | M38: 0 | N38: =($E$39)/12 -> 0 | O38: 0 | P38: 0 | Q38: 148676.3384 | R38: ='Input Data'!$C$85/100/12 -> 0.003225 | S38: 479.4811913 | T38: =(P31+S31)*R38 -> 972.8793241 | U38: =(P18+S18+T31)*R38 -> 0 | X38: Owed to Customers | Z38: =Y37+Y36 -> 0 | AA38: Amount to be credited to customers including variances
C39: Dispostion of 2024 Overcollection | E39: =-'2023-24 Overcollection'!P22-'2023-24 Overcollection'!P23 -> 0 | F39: Actual 2024 Overcollection | G39: August | I39: 0 | J39: 0 | L39: 0 | M39: 0 | N39: =($E$39)/12 -> 0 | O39: 0 | P39: 0 | Q39: 148676.3384 | R39: ='Input Data'!$C$85/100/12 -> 0.003225 | S39: 479.4811913 | T39: =(P31+S31)*R39 -> 972.8793241 | U39: =(P18+S18+T31)*R39 -> 0 | X39: Credited to Customers | Z39: =J44 -> 0 | AA39: Actual amount credited to customers based on actual volumes and forecast Power Purchased True-Up
C40: Forecast Power Purchased True-Up Balance ($) | E40: =SUM(E36:E39) -> 0 | G40: September | I40: 0 | J40: 0 | L40: 0 | M40: 0 | N40: =($E$39)/12 -> 0 | O40: 0 | P40: 0 | Q40: 148676.3384 | R40: ='Input Data'!$C$85/100/12 -> 0.003225 | S40: 479.4811913 | T40: =(P31+S31)*R40 -> 972.8793241 | U40: =(P18+S18+T31)*R40 -> 0 | X40: Variance | Z40: =Z38-Z39 -> 0 | AA40: Variance to be disposed in 2028
G41: October | I41: 0 | J41: 0 | L41: 0 | M41: 0 | N41: 0 | O41: 0 | P41: 0 | Q41: 148676.3384 | R41: ='Input Data'!$C$85/100/12 -> 0.003225 | S41: 479.4811913 | T41: =(P31+S31)*R41 -> 972.8793241 | U41: =(P18+S18+T31)*R41 -> 0 | X41: Interest on Variance | Z41: =S44+T57+U70 -> 10983.16399 | AA41: Interest on variance to be disposed in 2028
C42: Total Customer Volumes (kWh) | D42: =D29 -> 185090366 | F42: 2024 Actual Volumes (RRR values in IRM model) | G42: November | I42: 0 | J42: 0 | L42: 0 | M42: 0 | N42: 0 | O42: 0 | P42: 0 | Q42: 148676.3384 | R42: ='Input Data'!$C$85/100/12 -> 0.003225 | S42: 479.4811913 | T42: =(P31+S31)*R42 -> 972.8793241 | U42: =(P18+S18+T31)*R42 -> 0
C43: Power Purchased True-Up-2026 ($/kWh) | E43: =ROUND(-E40/D42,4) -> 0 | G43: December | I43: 0 | J43: 0 | L43: 0 | M43: 0 | N43: 0 | O43: 0 | P43: 0 | Q43: 148676.3384 | R43: ='Input Data'!$C$85/100/12 -> 0.003225 | S43: 479.4811913 | T43: =(P31+S31)*R43 -> 972.8793241 | U43: =(P18+S18+T31)*R43 -> 0
G44: Total | H44: =SUM(H32:H43) -> 0 | J44: =SUM(J32:J43) -> 0 | K44: 0 | L44: 0 | M44: 0 | N44: 148676.3384 | O44: 148676.3384 | P44: 148676.3384 | S44: =SUM(S32:S43) -> 5034.552508 | T44: =SUM(T32:T43) -> 11674.55189 | U44: =SUM(U32:U43) -> 0
B45: 2027 | G45: January | I45: =I43 -> 0 | J45: =H45*I45 -> 0 | L45: 0 | M45: =-K45/2 -> 0 | N45: =($E$39)/12 -> 0 | O45: =M45+N45 -> 0 | P45: =O45-J45 -> 0 | Q45: =P45 -> 0 | R45: ='Input Data'!$C$85/100/12 -> 0.003225 | S45: =Q45*R45 -> 0 | T45: =(P44+S44)*R45 -> 495.7176231 | U45: =(P31+S31+T44)*R45 -> 1010.529754
C46: Forecast Waltham Volumes (kWh) | D46: ='Input Data'!N97 -> 0 | F46: 2022-2025 Average Waltham Volumes | G46: February | I46: =I45 -> 0 | J46: 0 | L46: 0 | M46: 0 | N46: 0 | O46: 0 | P46: 0 | Q46: =P46+Q45 -> 0 | R46: ='Input Data'!$C$85/100/12 -> 0.003225 | S46: 0 | T46: =(P44+S44)*R46 -> 495.7176231 | U46: =(P31+S31+T44)*R46 -> 1010.529754 | W46: Summary
C47: Forecast GA ($/kWh) | D47: ='Input Data'!C116/1000 -> 0 | F47: Oct. 2025 RPP Report | G47: March | I47: =I46 -> 0 | J47: 0 | L47: 0 | M47: 0 | N47: 0 | O47: 0 | P47: 0 | Q47: 0 | R47: ='Input Data'!$C$85/100/12 -> 0.003225 | S47: 0 | T47: =(P44+S44)*R47 -> 495.7176231 | U47: =(P31+S31+T44)*R47 -> 1010.529754 | X47: GA Savings | Z47: =K57 -> 0 | AA47: Total GA avoided (Waltham kWh * GA $/kWh)
C48: Total Forecast GA Savings ($) | D48: =D46*D47 -> 0 | G48: April | I48: =I47 -> 0 | J48: 0 | L48: 0 | M48: 0 | N48: 0 | O48: 0 | P48: 0 | Q48: 0 | R48: ='Input Data'!$C$85/100/12 -> 0.003225 | S48: 0 | T48: =(P44+S44)*R48 -> 495.7176231 | U48: =(P31+S31+T44)*R48 -> 1010.529754 | X48: Purchased Power-Adjustment | Z48: =L57 -> 0 | AA48: Paid to Brookfield
C49: Forecast net GA Savings ($) | E49: =D48/2 -> 0 | F49: Total savings * 50% | G49: May | I49: =E55 -> 0 | J49: 0 | L49: 0 | M49: 0 | N49: =($E$50+$E$51)/12 -> 0 | O49: 0 | P49: 0 | Q49: 0 | R49: ='Input Data'!$C$85/100/12 -> 0.003225 | S49: 0 | T49: =(P44+S44)*R49 -> 495.7176231 | U49: =(P31+S31+T44)*R49 -> 1010.529754 | X49: Customer Share | Y49: =M57 -> 0 | AA49: Amount that should be credited to customers
C50: Variance from previous years ($) | E50: =Z14 -> 0 | F50: Audited Variance from 2024 | G50: June | I50: =I49 -> 0 | J50: 0 | L50: 0 | M50: 0 | N50: =($E$50+$E$51)/12 -> 0 | O50: 0 | P50: 0 | Q50: 0 | R50: ='Input Data'!$C$85/100/12 -> 0.003225 | S50: 0 | T50: =(P44+S44)*R50 -> 495.7176231 | U50: =(P31+S31+T44)*R50 -> 1010.529754 | X50: Variance Disposition | Y50: =Z27+Z28 -> 28116.23966 | AA50: Adjustment for earlier variances (3-year lag)
C51: Interest on variance ($) | E51: =Z15 -> 0 | F51: Interest on variance from 2024 | G51: July | I51: =I50 -> 0 | J51: 0 | L51: 0 | M51: 0 | N51: =($E$50+$E$51)/12 -> 0 | O51: 0 | P51: 0 | Q51: 0 | R51: ='Input Data'!$C$85/100/12 -> 0.003225 | S51: 0 | T51: =(P44+S44)*R51 -> 495.7176231 | U51: =(P31+S31+T44)*R51 -> 1010.529754 | X51: Owed to Customers | Z51: =Y50+Y49 -> 28116.23966 | AA51: Amount to be credited to customers including variances
C52: Forecast Power Purchased True-Up Balance ($) | E52: =SUM(E49:E51) -> 0 | G52: August | I52: 0 | J52: 0 | L52: 0 | M52: 0 | N52: 0 | O52: 0 | P52: 0 | Q52: 0 | R52: ='Input Data'!$C$85/100/12 -> 0.003225 | S52: 0 | T52: =(P44+S44)*R52 -> 495.7176231 | U52: =(P31+S31+T44)*R52 -> 1010.529754 | X52: Credited to Customers | Z52: =J57 -> 0 | AA52: Actual amount credited to customers based on actual volumes and forecast Power Purchased True-Up
G53: September | I53: 0 | J53: 0 | L53: 0 | M53: 0 | N53: 0 | O53: 0 | P53: 0 | Q53: 0 | R53: ='Input Data'!$C$85/100/12 -> 0.003225 | S53: 0 | T53: =(P44+S44)*R53 -> 495.7176231 | U53: =(P31+S31+T44)*R53 -> 1010.529754 | X53: Variance | Z53: =Z51-Z52 -> 28116.23966 | AA53: Variance to be disposed in 2029
C54: Total Customer Volumes (kWh) | D54: =D42 -> 185090366 | F54: 2025 Actual Volumes (RRR values in IRM model) | G54: October | I54: 0 | J54: 0 | L54: 0 | M54: 0 | N54: 0 | O54: 0 | P54: 0 | Q54: 0 | R54: ='Input Data'!$C$85/100/12 -> 0.003225 | S54: 0 | T54: =(P44+S44)*R54 -> 495.7176231 | U54: =(P31+S31+T44)*R54 -> 1010.529754 | X54: Interest on Variance | Z54: =S57+T70+U83 -> 0 | AA54: Interest on variance to be disposed in 2029
C55: Power Purchased True-Up-2027 ($/kWh) | E55: =ROUND(-E52/D54,4) -> 0 | G55: November | I55: 0 | J55: 0 | L55: 0 | M55: 0 | N55: 0 | O55: 0 | P55: 0 | Q55: 0 | R55: ='Input Data'!$C$85/100/12 -> 0.003225 | S55: 0 | T55: =(P44+S44)*R55 -> 495.7176231 | U55: =(P31+S31+T44)*R55 -> 1010.529754
G56: December | I56: 0 | J56: 0 | L56: 0 | M56: 0 | N56: 0 | O56: 0 | P56: 0 | Q56: 0 | R56: ='Input Data'!$C$85/100/12 -> 0.003225 | S56: 0 | T56: =(P44+S44)*R56 -> 495.7176231 | U56: =(P31+S31+T44)*R56 -> 1010.529754
G57: Total | H57: =SUM(H45:H56) -> 0 | J57: =SUM(J45:J56) -> 0 | K57: =SUM(K45:K56) -> 0 | L57: =SUM(L45:L56) -> 0 | M57: =SUM(M45:M56) -> 0 | N57: =SUM(N45:N56) -> 0 | O57: =SUM(O45:O56) -> 0 | P57: =SUM(P45:P56) -> 0 | S57: =SUM(S45:S56) -> 0 | T57: =SUM(T45:T56) -> 5948.611477 | U57: =SUM(U45:U56) -> 12126.35705

Sheet 2023-24 Overcollection
C2: 2023/24 Overcollection
D3: GA Savings | E3: Purchasd Power Adjustmnet | F3: Customer Share | G3: Owed to Customers | H3: Cumulative Credit | I3: Interest % | J3: Interest $ | K3: Lagged Interest
D4: A | E4: B = A / 2 | F4: C = A / 2 | G4: D = C | H4: E | I4: F | J4: G = E * F
B5: 2023 | C5: January | E5: =-D5/2 -> 0 | F5: =-D5/2 -> 0 | G5: =F5 -> 0 | H5: =G5 -> 0 | I5: ='Input Data'!$C$82/100/12 -> 0.000475 | J5: =H5*I5 -> 0
C6: February | E6: 0 | F6: 0 | G6: 0 | H6: =H5+G6 -> 0 | I6: ='Input Data'!$C$82/100/12 -> 0.000475 | J6: 0 | M6: Summary
C7: March | E7: 0 | F7: 0 | G7: 0 | H7: 0 | I7: ='Input Data'!$C$82/100/12 -> 0.000475 | J7: 0 | N7: GA Savings on Waltham Energy | P7: =D17 -> 847416.91 | Q7: Total GA avoided (Waltham kWh * GA $/kWh)
C8: April | E8: 0 | F8: 0 | G8: 0 | H8: 0 | I8: ='Input Data'!$C$83/100/12 -> 0.00085 | J8: 0 | N8: Purchased Power-Adjustment | P8: =E17 -> -423708.455 | Q8: Paid to Brookfield
C9: May | E9: 0 | F9: 0 | G9: 0 | H9: 0 | I9: ='Input Data'!$C$83/100/12 -> 0.00085 | J9: 0 | N9: Customer Share Owed to Customers | P9: =F17 -> -423708.455 | Q9: Amount to be credited to customers in 2025
C10: June | E10: 0 | F10: 0 | G10: 0 | H10: 0 | I10: ='Input Data'!$C$83/100/12 -> 0.00085 | J10: 0 | N10: Interest | P10: =J17+K30 -> -22320.56013 | Q10: Interest on balance owed to customers in 2025
C11: July | D11: ='Input Data'!W11 -> 256400.04 | E11: =-D11/2 -> -128200.02 | F11: -128200.02 | G11: -128200.02 | H11: -128200.02 | I11: ='Input Data'!$C$84/100/12 -> 0.001833333333 | J11: -235.03337
C12: August | D12: ='Input Data'!W12 -> 388490.9 | E12: -194245.45 | F12: -194245.45 | G12: -194245.45 | H12: -322445.47 | I12: ='Input Data'!$C$84/100/12 -> 0.001833333333 | J12: -591.1500283
C13: September | D13: ='Input Data'!W13 -> 202525.97 | E13: -101262.985 | F13: -101262.985 | G13: -101262.985 | H13: -423708.455 | I13: ='Input Data'!$C$84/100/12 -> 0.001833333333 | J13: -776.7988342
C14: October | D14: ='Input Data'!W14 -> 0 | E14: 0 | F14: 0 | G14: 0 | H14: -423708.455 | I14: ='Input Data'!$C$85/100/12 -> 0.003225 | J14: -1366.459767
C15: November | D15: ='Input Data'!W15 -> 0 | E15: 0 | F15: 0 | G15: 0 | H15: -423708.455 | I15: ='Input Data'!$C$85/100/12 -> 0.003225 | J15: -1366.459767
C16: December | D16: ='Input Data'!W16 -> 0 | E16: 0 | F16: 0 | G16: 0 | H16: -423708.455 | I16: ='Input Data'!$C$85/100/12 -> 0.003225 | J16: -1366.459767
C17: Total | D17: =SUM(D5:D16) -> 847416.91 | E17: =SUM(E5:E16) -> -423708.455 | F17: =SUM(F5:F16) -> -423708.455 | G17: =SUM(G5:G16) -> -423708.455 | J17: =SUM(J5:J16) -> -5702.361535 | K17: =SUM(K5:K16) -> 0
B18: 2024 | C18: January | E18: =-D18/2 -> 0 | F18: =-D18/2 -> 0 | G18: 0 | H18: =G18 -> 0 | I18: ='Input Data'!$C$85/100/12 -> 0.003225 | J18: =H18*I18 -> 0 | K18: =(H16+J17)*I18 -> -1384.849883
C19: February | E19: 0 | F19: 0 | G19: 0 | H19: =H18+G19 -> 0 | I19: ='Input Data'!$C$85/100/12 -> 0.003225 | J19: 0 | K19: =(H16+J17)*I19 -> -1384.849883 | M19: Summary
C20: March | E20: 0 | F20: 0 | G20: 0 | H20: 0 | I20: ='Input Data'!$C$85/100/12 -> 0.003225 | J20: 0 | K20: =(H16+J17)*I20 -> -1384.849883 | N20: GA Savings on Waltham Energy | P20: =D30 -> 0 | Q20: Total GA avoided (Waltham kWh * GA $/kWh)
C21: April | E21: 0 | F21: 0 | G21: 0 | H21: 0 | I21: ='Input Data'!$C$85/100/12 -> 0.003225 | J21: 0 | K21: =(H16+J17)*I21 -> -1384.849883 | N21: Purchased Power-Adjustment | P21: =E30 -> 0 | Q21: Paid to Brookfield
C22: May | E22: 0 | F22: 0 | G22: 0 | H22: 0 | I22: ='Input Data'!$C$85/100/12 -> 0.003225 | J22: 0 | K22: =(H16+J17)*I22 -> -1384.849883 | N22: Customer Share Owed to Customers | P22: =F30 -> 0 | Q22: Amount to be credited to customers in 2026
C23: June | E23: 0 | F23: 0 | G23: 0 | H23: 0 | I23: ='Input Data'!$C$85/100/12 -> 0.003225 | J23: 0 | K23: =(H16+J17)*I23 -> -1384.849883 | N23: Interest | P23: =J30+K43 -> 0 | Q23: Interest on balance owed to customers in 2026
C24: July | E24: 0 | F24: 0 | G24: 0 | H24: 0 | I24: ='Input Data'!$C$85/100/12 -> 0.003225 | J24: 0 | K24: =(H16+J17)*I24 -> -1384.849883
C25: August | E25: 0 | F25: 0 | G25: 0 | H25: 0 | I25: ='Input Data'!$C$85/100/12 -> 0.003225 | J25: 0 | K25: =(H16+J17)*I25 -> -1384.849883
C26: September | E26: 0 | F26: 0 | G26: 0 | H26: 0 | I26: ='Input Data'!$C$85/100/12 -> 0.003225 | J26: 0 | K26: =(H16+J17)*I26 -> -1384.849883
C27: October | E27: 0 | F27: 0 | G27: 0 | H27: 0 | I27: ='Input Data'!$C$85/100/12 -> 0.003225 | J27: 0 | K27: =(H16+J17)*I27 -> -1384.849883
C28: November | E28: 0 | F28: 0 | G28: 0 | H28: 0 | I28: ='Input Data'!$C$85/100/12 -> 0.003225 | J28: 0 | K28: =(H16+J17)*I28 -> -1384.849883
C29: December | E29: 0 | F29: 0 | G29: 0 | H29: 0 | I29: ='Input Data'!$C$85/100/12 -> 0.003225 | J29: 0 | K29: =(H16+J17)*I29 -> -1384.849883
C30: Total | D30: =SUM(D18:D29) -> 0 | E30: =SUM(E18:E29) -> 0 | F30: =SUM(F18:F29) -> 0 | G30: =SUM(G18:G29) -> 0 | J30: =SUM(J18:J29) -> 0 | K30: =SUM(K18:K29) -> -16618.1986
B31: 2025 | C31: January | I31: ='Input Data'!$C$85/100/12 -> 0.003225 | J31: =H31*I31 -> 0 | K31: =(H29+J30)*I31 -> 0
C32: February | I32: ='Input Data'!$C$85/100/12 -> 0.003225 | J32: 0 | K32: =(H29+J30)*I32 -> 0
C33: March | I33: ='Input Data'!$C$85/100/12 -> 0.003225 | J33: 0 | K33: =(H29+J30)*I33 -> 0
C34: April | I34: ='Input Data'!$C$85/100/12 -> 0.003225 | J34: 0 | K34: =(H29+J30)*I34 -> 0
C35: May | I35: ='Input Data'!$C$85/100/12 -> 0.003225 | J35: 0 | K35: =(H29+J30)*I35 -> 0
C36: June | I36: ='Input Data'!$C$85/100/12 -> 0.003225 | J36: 0 | K36: =(H29+J30)*I36 -> 0
C37: July | I37: ='Input Data'!$C$85/100/12 -> 0.003225 | J37: 0 | K37: =(H29+J30)*I37 -> 0
C38: August | I38: ='Input Data'!$C$85/100/12 -> 0.003225 | J38: 0 | K38: =(H29+J30)*I38 -> 0
C39: September | I39: ='Input Data'!$C$85/100/12 -> 0.003225 | J39: 0 | K39: =(H29+J30)*I39 -> 0
C40: October | I40: ='Input Data'!$C$85/100/12 -> 0.003225 | J40: 0 | K40: =(H29+J30)*I40 -> 0
C41: November | I41: ='Input Data'!$C$85/100/12 -> 0.003225 | J41: 0 | K41: =(H29+J30)*I41 -> 0
C42: December | I42: ='Input Data'!$C$85/100/12 -> 0.003225 | J42: 0 | K42: =(H29+J30)*I42 -> 0
C43: Total | D43: =SUM(D31:D42) -> 0 | E43: =SUM(E31:E42) -> 0 | F43: =SUM(F31:F42) -> 0 | G43: =SUM(G31:G42) -> 0 | J43: =SUM(J31:J42) -> 0 | K43: =SUM(K31:K42) -> 0

Sheet Alternate Historic PP True-Up
C2: Calcultion as if GA was not applied to Waltham before July 2023 | F2: Input Cells | G2: Power Purchased True-Up Rate
H3: Customer Volumes (kWh) | I3: Rate ($/kWh) | J3: Credited to Customers | K3: GA Savings | L3: Purchasd Power Adjustmnet | M3: Net GA Savings | N3: Variance Disposition & Overcollection | O3: Owed to Customers | P3: Variance | Q3: Cumulative Variance | R3: Interest % | S3: Interest $ | T3: Lagged Interest | U3: Lagged Interest
H4: A | I4: B | J4: C = A * B | K4: D | L4: E = D / 2 | M4: F = D / 2 | N4: G | O4: H | P4: I = H - C | Q4: J | R4: K | S4: L = J * L
C5: Forecast Power Purchased True-Up Balance and Rate Calculations | F5: Notes | H5: Total Customer kWh Volumes (metered) | I5: Forecast rate (changes each May) | J5: Actual amount credited to customers | K5: Actual avoided GA (Waltham volumes * GA $/kWh) | L5: Actual half paid to Brookfield | M5: Actual half to be credited to customers | N5: Adjustment for audited variances (3-year lag) and Overcollection | O5: Actual amount to be credit to customers, including variances and overcollection | P5: Difference between what was actually credited to customers and what should be | Q5: Cumulative variance used to calculate variances | R5: OEB's DVA interest rate | S5: Monthly interest on variances | T5: Monthly interest on variances in lag year 1 | U5: Monthly interest on variances in lag year 2
B6: 2019 | G6: January | H6: ='Input Data'!E22/1.041 -> 19069925.18 | I6: =E16 -> -0.0137 | J6: =H6*I6 -> -261257.975 | K6: ='Input Data'!K5 -> 177700.32 | L6: =-K6/2 -> -88850.16 | M6: =-K6/2 -> -88850.16 | O6: =M6+N6 -> -88850.16 | P6: =O6-J6 -> 172407.815 | Q6: =P6 -> 172407.815 | R6: ='Input Data'!$C$70/100/12 -> 0.002041666667 | S6: =Q6*R6 -> 351.999289
D7: Forecast Data | G7: February | H7: ='Input Data'!E23/1.041 -> 17219795.46 | I7: =I6 -> -0.0137 | J7: -235911.1979 | K7: ='Input Data'!K6 -> 223295.2 | L7: -111647.6 | M7: -111647.6 | O7: =M7+N7 -> -111647.6 | P7: =O7-J7 -> 124263.5979 | Q7: =P7+Q6 -> 296671.4129 | R7: ='Input Data'!$C$70/100/12 -> 0.002041666667 | S7: 605.7041346 | W7: Summary
C8: Forecast Waltham Volumes (kWh) | D8: ='Input Data'!I57 -> 47853390 | F8: 4-Year Avg. | G8: March | H8: ='Input Data'!E24/1.041 -> 16475481.72 | I8: -0.0137 | J8: -225714.0995 | K8: ='Input Data'!K7 -> 360251.28 | L8: -180125.64 | M8: -180125.64 | O8: -180125.64 | P8: 45588.45953 | Q8: 342259.8724 | R8: ='Input Data'!$C$70/100/12 -> 0.002041666667 | S8: 698.7805729 | X8: GA Savings on Waltham Energy | Z8: =K18 -> 3290512.7 | AA8: Total GA avoided (Waltham kWh * GA $/kWh)
C9: Forecast GA ($/kWh) | D9: ='Input Data'!C61/1000 -> 0.10222 | F9: Apr 2018 RPP Report | G9: April | H9: ='Input Data'!E25/1.041 -> 13659463.75 | I9: -0.0137 | J9: -187134.6534 | K9: ='Input Data'!K8 -> 266630.83 | L9: -133315.415 | M9: -133315.415 | O9: -133315.415 | P9: 53819.23837 | Q9: 396079.1108 | R9: ='Input Data'!$C$71/100/12 -> 0.001816666667 | S9: 719.5437179 | X9: Purchased Power-Adjustment | Z9: =L18 -> -1645256.35 | AA9: Paid to Brookfield
C10: Total Forecast GA Savings ($) | D10: =D8*D9 -> 4891573.526 | G10: May | H10: ='Input Data'!E26/1.041 -> 13307088.21 | I10: -0.0137 | J10: -182307.1084 | K10: ='Input Data'!K9 -> 72258.73 | L10: -36129.365 | M10: -36129.365 | O10: -36129.365 | P10: 146177.7434 | Q10: 542256.8542 | R10: ='Input Data'!$C$71/100/12 -> 0.001816666667 | S10: 985.0999518 | X10: Customer Share | Y10: =M18 -> -1645256.35 | AA10: Amount that should be credited to customers
C11: Forecast net GA Savings ($) | E11: =D10/2 -> 2445786.763 | F11: Total savings * 50% | G11: June | H11: ='Input Data'!E27/1.041 -> 14083886.08 | I11: -0.0137 | J11: -192949.2394 | K11: ='Input Data'!K10 -> 335810.21 | L11: -167905.105 | M11: -167905.105 | O11: -167905.105 | P11: 25044.13436 | Q11: 567300.9886 | R11: ='Input Data'!$C$71/100/12 -> 0.001816666667 | S11: 1030.596796 | X11: Variance Disposition | AA11: Adjustment for earlier variances (3-year lag)
C12: Forecast Power Purchased True-Up Balance ($) | E12: =E11 -> 2445786.763 | G12: July | H12: ='Input Data'!E28/1.041 -> 15933659.53 | I12: -0.0137 | J12: -218291.1355 | K12: ='Input Data'!K11 -> 354615.79 | L12: -177307.895 | M12: -177307.895 | O12: -177307.895 | P12: 40983.24055 | Q12: 608284.2291 | R12: ='Input Data'!$C$72/100/12 -> 0.001816666667 | S12: 1105.049683 | X12: Owed to Customers | Z12: =Y11+Y10 -> -1645256.35 | AA12: Amount to be credited to customers including variances
G13: August | H13: ='Input Data'!E29/1.041 -> 15772699.29 | I13: -0.0137 | J13: -216085.9803 | K13: ='Input Data'!K12 -> 445957.5 | L13: -222978.75 | M13: -222978.75 | O13: -222978.75 | P13: -6892.76967 | Q13: 601391.4594 | R13: ='Input Data'!$C$72/100/12 -> 0.001816666667 | S13: 1092.527818 | X13: Credited to Customers | Z13: =J18 -> -2530251.02 | AA13: Actual amount credited to customers based on actual volumes and forecast Power Purchased True-Up
C14: Total Customer Volumes (kWh) | D14: ='Input Data'!C39 -> 177934181 | F14: 2017 Volumes | G14: September | H14: ='Input Data'!E30/1.041 -> 12756498.43 | I14: -0.0137 | J14: -174764.0285 | K14: ='Input Data'!K13 -> 329192.88 | L14: -164596.44 | M14: -164596.44 | O14: -164596.44 | P14: 10167.58853 | Q14: 611559.048 | R14: ='Input Data'!$C$72/100/12 -> 0.001816666667 | S14: 1110.998937 | X14: Variance | Z14: =Z12-Z13 -> 884994.67 | AA14: Variance to be disposed in 2022
G15: October | H15: ='Input Data'!E31/1.041 -> 13524708.57 | I15: -0.0137 | J15: -185288.5074 | K15: ='Input Data'!K14 -> 388762.35 | L15: -194381.175 | M15: -194381.175 | O15: -194381.175 | P15: -9092.667621 | Q15: 602466.3804 | R15: ='Input Data'!$C$73/100/12 -> 0.001816666667 | S15: 1094.480591 | X15: Interest on Variance | Z15: =S18+T31+U44 -> 29248.42606 | AA15: Interest on variance to be disposed in 2022
C16: Power Purchased True-Up-2019 ($/kWh) | E16: =ROUND(-E12/D14,4) -> -0.0137 | G16: November | H16: ='Input Data'!E32/1.041 -> 15105118.18 | I16: -0.0137 | J16: -206940.1191 | K16: ='Input Data'!K15 -> 149971.81 | L16: -74985.905 | M16: -74985.905 | O16: -74985.905 | P16: 131954.2141 | Q16: 734420.5944 | R16: ='Input Data'!$C$73/100/12 -> 0.001816666667 | S16: 1334.197413
G17: December | H17: ='Input Data'!E33/1.041 -> 17781531.07 | I17: -0.0137 | J17: -243606.9756 | K17: ='Input Data'!K16 -> 186065.8 | L17: -93032.9 | M17: -93032.9 | O17: -93032.9 | P17: 150574.0756 | Q17: 884994.67 | R17: ='Input Data'!$C$73/100/12 -> 0.001816666667 | S17: 1607.740317
G18: Total | H18: =SUM(H6:H17) -> 184689855.5 | J18: =SUM(J6:J17) -> -2530251.02 | K18: 3290512.7 | L18: -1645256.35 | M18: -1645256.35 | N18: 0 | O18: -1645256.35 | P18: 884994.67 | S18: =SUM(S6:S17) -> 11736.71922
B19: 2020 | G19: January | H19: ='Input Data'!F22/1.041 -> 17802785.36 | I19: =E16 -> -0.0137 | J19: =H19*I19 -> -243898.1594 | K19: ='Input Data'!N5 -> 213758.76 | L19: =-K19/2 -> -106879.38 | M19: =-K19/2 -> -106879.38 | O19: =M19+N19 -> -106879.38 | P19: =O19-J19 -> 137018.7794 | Q19: =P19 -> 137018.7794 | R19: ='Input Data'!$C$74/100/12 -> 0.001816666667 | S19: =Q19*R19 -> 248.9174493 | T19: =(P18+S18)*R19 -> 1629.062024
C20: Forecast Waltham Volumes (kWh) | D20: ='Input Data'!J57 -> 44476067 | F20: 4-Year Avg. | G20: February | H20: ='Input Data'!F23/1.041 -> 16447717.86 | I20: =I19 -> -0.0137 | J20: -225333.7347 | K20: ='Input Data'!N6 -> 191369.26 | L20: -95684.63 | M20: -95684.63 | O20: -95684.63 | P20: 129649.1047 | Q20: =P20+Q19 -> 266667.8841 | R20: ='Input Data'!$C$74/100/12 -> 0.001816666667 | S20: 484.4466561 | T20: =(P18+S18)*R20 -> 1629.062024 | W20: Summary
C21: Forecast GA ($/kWh) | D21: ='Input Data'!C62/1000 -> 0.10694 | F21: Oct 2019 RPP Report | G21: March | H21: ='Input Data'!F24/1.041 -> 15617253.25 | I21: =I20 -> -0.0137 | J21: -213956.3695 | K21: ='Input Data'!N7 -> 385004.11 | L21: -192502.055 | M21: -192502.055 | O21: -192502.055 | P21: 21454.31448 | Q21: 288122.1986 | R21: ='Input Data'!$C$74/100/12 -> 0.001816666667 | S21: 523.4219941 | T21: =(P18+S18)*R21 -> 1629.062024 | X21: GA Savings on Waltham Energy | Z21: =K31 -> 4874784.58 | AA21: Total GA avoided (Waltham kWh * GA $/kWh)
C22: Total Forecast GA Savings ($) | D22: =D20*D21 -> 4756270.605 | G22: April | H22: ='Input Data'!F25/1.041 -> 13611107.44 | I22: =I21 -> -0.0137 | J22: -186472.172 | K22: ='Input Data'!N8 -> 500417.89 | L22: -250208.945 | M22: -250208.945 | O22: -250208.945 | P22: -63736.77301 | Q22: 224385.4256 | R22: ='Input Data'!$C$75/100/12 -> 0.001816666667 | S22: 407.6335231 | T22: =(P18+S18)*R22 -> 1629.062024 | X22: Purchased Power-Adjustment | Z22: =L31 -> -2437392.29 | AA22: Paid to Brookfield
C23: Forecast net GA Savings ($) | E23: =D22/2 -> 2378135.302 | F23: Total savings * 50% | G23: May | H23: ='Input Data'!F26/1.041 -> 13046327.97 | I23: =E30 -> -0.0128 | J23: -166992.9981 | K23: ='Input Data'!N9 -> 643061.8 | L23: -321530.9 | M23: -321530.9 | O23: -321530.9 | P23: -154537.9019 | Q23: 69847.52362 | R23: ='Input Data'!$C$75/100/12 -> 0.001816666667 | S23: 126.8896679 | T23: =(P18+S18)*R23 -> 1629.062024 | X23: Customer Share | Y23: =M31 -> -2437392.29 | AA23: Amount that should be credited to customers
C24: Variance from previous years ($) | G24: June | H24: ='Input Data'!F27/1.041 -> 13747173.01 | I24: =I23 -> -0.0128 | J24: -175963.8145 | K24: ='Input Data'!N10 -> 540081.22 | L24: -270040.61 | M24: -270040.61 | O24: -270040.61 | P24: -94076.79551 | Q24: -24229.2719 | R24: ='Input Data'!$C$75/100/12 -> 0.001816666667 | S24: -44.01651061 | T24: =(P18+S18)*R24 -> 1629.062024 | X24: Variance Disposition | AA24: Adjustment for earlier variances (3-year lag)
C25: Interest on variance ($) | G25: July | H25: ='Input Data'!F28/1.041 -> 17000674.18 | I25: -0.0128 | J25: -217608.6295 | K25: ='Input Data'!N11 -> 346027.37 | L25: -173013.685 | M25: -173013.685 | O25: -173013.685 | P25: 44594.94449 | Q25: 20365.67259 | R25: ='Input Data'!$C$76/100/12 -> 0.000475 | S25: 9.673694481 | T25: =(P18+S18)*R25 -> 425.9474099 | X25: Owed to Customers | Z25: =Y24+Y23 -> -2437392.29 | AA25: Amount to be credited to customers including variances
C26: Forecast Power Purchased True-Up Balance ($) | E26: =SUM(E23:E25) -> 2378135.302 | G26: August | H26: ='Input Data'!F29/1.041 -> 14580994.7 | I26: -0.0128 | J26: -186636.7321 | K26: ='Input Data'!N12 -> 482319.24 | L26: -241159.62 | M26: -241159.62 | O26: -241159.62 | P26: -54522.88787 | Q26: -34157.21528 | R26: ='Input Data'!$C$76/100/12 -> 0.000475 | S26: -16.22467726 | T26: =(P18+S18)*R26 -> 425.9474099 | X26: Credited to Customers | Z26: =J31 -> -2350359.562 | AA26: Actual amount credited to customers based on actual volumes and forecast Power Purchased True-Up
G27: September | H27: ='Input Data'!F30/1.041 -> 12134074.76 | I27: -0.0128 | J27: -155316.157 | K27: ='Input Data'!N13 -> 498536.58 | L27: -249268.29 | M27: -249268.29 | O27: -249268.29 | P27: -93952.13301 | Q27: -128109.3483 | R27: ='Input Data'!$C$76/100/12 -> 0.000475 | S27: -60.85194044 | T27: =(P18+S18)*R27 -> 425.9474099 | X27: Variance | Z27: =Z25-Z26 -> -87032.72803 | AA27: Variance to be disposed in 2023
C28: Total Customer Volumes (kWh) | D28: ='Input Data'!D39 -> 185198705 | F28: 2018 Volumes | G28: October | H28: ='Input Data'!F31/1.041 -> 13278032.41 | I28: -0.0128 | J28: -169958.8149 | K28: ='Input Data'!N14 -> 497656.53 | L28: -248828.265 | M28: -248828.265 | O28: -248828.265 | P28: -78869.45014 | Q28: -206978.7984 | R28: ='Input Data'!$C$77/100/12 -> 0.000475 | S28: -98.31492925 | T28: =(P18+S18)*R28 -> 425.9474099 | X28: Interest on Variance | Z28: =S31+T44+U57 -> -695.2458884 | AA28: Interest on variance to be disposed in 2023
G29: November | H29: ='Input Data'!F32/1.041 -> 14216529.56 | I29: -0.0128 | J29: -181971.5783 | K29: ='Input Data'!N15 -> 367603.72 | L29: -183801.86 | M29: -183801.86 | O29: -183801.86 | P29: -1830.281656 | Q29: -208809.0801 | R29: ='Input Data'!$C$77/100/12 -> 0.000475 | S29: -99.18431304 | T29: =(P18+S18)*R29 -> 425.9474099
C30: Power Purchased True-Up-2020 ($/kWh) | E30: =ROUND(-E26/D28,4) -> -0.0128 | G30: December | H30: ='Input Data'!F33/1.041 -> 17675812.66 | I30: -0.0128 | J30: -226250.4021 | K30: ='Input Data'!N16 -> 208948.1 | L30: -104474.05 | M30: -104474.05 | O30: -104474.05 | P30: 121776.3521 | Q30: -87032.72803 | R30: ='Input Data'!$C$77/100/12 -> 0.000475 | S30: -41.34054581 | T30: =(P18+S18)*R30 -> 425.9474099
G31: Total | H31: =SUM(H19:H30) -> 179158483.2 | J31: =SUM(J19:J30) -> -2350359.562 | K31: 4874784.58 | L31: -2437392.29 | M31: -2437392.29 | N31: 0 | O31: -2437392.29 | P31: -87032.72803 | S31: =SUM(S19:S30) -> 1441.050069 | T31: =SUM(T19:T30) -> 12330.0566
B32: 2021 | G32: January | H32: ='Input Data'!G22/1.041 -> 17395082.61 | I32: =E30 -> -0.0128 | J32: =H32*I32 -> -222657.0574 | K32: ='Input Data'!Q5 -> 149829.72 | L32: =-K32/2 -> -74914.86 | M32: =-K32/2 -> -74914.86 | O32: =M32+N32 -> -74914.86 | P32: =O32-J32 -> 147742.1974 | Q32: =P32 -> 147742.1974 | R32: ='Input Data'!$C$78/100/12 -> 0.000475 | S32: =Q32*R32 -> 70.17754379 | T32: =(P31+S31)*R32 -> -40.65604703 | U32: =(P18+S18+T31)*R32 -> 431.8041868
C33: Forecast Waltham Volumes (kWh) | D33: ='Input Data'!K57 -> 39862344.67 | F33: 4-Year Avg. | G33: February | H33: ='Input Data'!G23/1.041 -> 16387114.31 | I33: =I32 -> -0.0128 | J33: -209755.0632 | K33: ='Input Data'!Q6 -> 69263.97 | L33: -34631.985 | M33: -34631.985 | O33: -34631.985 | P33: 175123.0782 | Q33: =P33+Q32 -> 322865.2757 | R33: ='Input Data'!$C$78/100/12 -> 0.000475 | S33: =Q33*R33 -> 153.3610059 | T33: =(P31+S31)*R33 -> -40.65604703 | U33: =(P18+S18+T31)*R33 -> 431.8041868 | W33: Summary
C34: Forecast GA ($/kWh) | D34: ='Input Data'!C63/1000 -> 0.10947 | F34: Oct 2020 RPP Report | G34: March | H34: ='Input Data'!G24/1.041 -> 16113559.08 | I34: =I33 -> -0.0128 | J34: -206253.5562 | K34: ='Input Data'!Q7 -> 247378.25 | L34: -123689.125 | M34: -123689.125 | O34: -123689.125 | P34: 82564.4312 | Q34: 405429.7068 | R34: ='Input Data'!$C$78/100/12 -> 0.000475 | S34: 192.5791108 | T34: =(P31+S31)*R34 -> -40.65604703 | U34: =(P18+S18+T31)*R34 -> 431.8041868 | X34: GA Savings | Z34: =K44 -> 2678600.33 | AA34: Total GA avoided (Waltham kWh * GA $/kWh)
C35: Forecast GA Savings ($) | D35: =D33*D34 -> 4363730.871 | G35: April | H35: ='Input Data'!G25/1.041 -> 12760011.83 | I35: =I34 -> -0.0128 | J35: -163328.1515 | K35: ='Input Data'!Q8 -> 480907.93 | L35: -240453.965 | M35: -240453.965 | O35: -240453.965 | P35: -77125.81351 | Q35: 328303.8933 | R35: ='Input Data'!$C$79/100/12 -> 0.000475 | S35: 155.9443493 | T35: =(P31+S31)*R35 -> -40.65604703 | U35: =(P18+S18+T31)*R35 -> 431.8041868 | X35: Purchased Power-Adjustment | Z35: =L44 -> -1339300.165 | AA35: Paid to Brookfield
C36: Forecast net GA Savings ($) | E36: =D35/2 -> 2181865.435 | F36: Total savings * 50% | G36: May | H36: ='Input Data'!G26/1.041 -> 12992608.45 | I36: =E43 -> -0.0119 | J36: -154612.0406 | K36: ='Input Data'!Q9 -> 335107.86 | L36: -167553.93 | M36: -167553.93 | O36: -167553.93 | P36: -12941.8894 | Q36: 315362.0039 | R36: ='Input Data'!$C$79/100/12 -> 0.000475 | S36: 149.7969519 | T36: =(P31+S31)*R36 -> -40.65604703 | U36: =(P18+S18+T31)*R36 -> 431.8041868 | X36: Customer Share | Y36: =M44 -> -1339300.165 | AA36: Amount that should be credited to customers
C37: Variance from previous years ($) | G37: June | H37: ='Input Data'!G27/1.041 -> 14312678.26 | I37: =I36 -> -0.0119 | J37: -170320.8713 | K37: ='Input Data'!Q10 -> 115087.01 | L37: -57543.505 | M37: -57543.505 | O37: -57543.505 | P37: 112777.3663 | Q37: 428139.3702 | R37: ='Input Data'!$C$79/100/12 -> 0.000475 | S37: 203.3662009 | T37: =(P31+S31)*R37 -> -40.65604703 | U37: =(P18+S18+T31)*R37 -> 431.8041868 | X37: Variance Disposition | AA37: Adjustment for earlier variances (3-year lag)
C38: Interest on variance ($) | G38: July | H38: ='Input Data'!G28/1.041 -> 14678629.69 | I38: -0.0119 | J38: -174675.6933 | K38: ='Input Data'!Q11 -> 271220.41 | L38: -135610.205 | M38: -135610.205 | O38: -135610.205 | P38: 39065.48834 | Q38: 467204.8586 | R38: ='Input Data'!$C$80/100/12 -> 0.000475 | S38: 221.9223078 | T38: =(P31+S31)*R38 -> -40.65604703 | U38: =(P18+S18+T31)*R38 -> 431.8041868 | X38: Owed to Customers | Z38: =Y37+Y36 -> -1339300.165 | AA38: Amount to be credited to customers including variances
C39: Forecast Power Purchased True-Up Balance ($) | E39: =SUM(E36:E38) -> 2181865.435 | G39: August | H39: ='Input Data'!G29/1.041 -> 16760211.45 | I39: -0.0119 | J39: -199446.5163 | K39: ='Input Data'!Q12 -> 206589.84 | L39: -103294.92 | M39: -103294.92 | O39: -103294.92 | P39: 96151.59626 | Q39: 563356.4548 | R39: ='Input Data'!$C$80/100/12 -> 0.000475 | S39: 267.5943161 | T39: =(P31+S31)*R39 -> -40.65604703 | U39: =(P18+S18+T31)*R39 -> 431.8041868 | X39: Credited to Customers | Z39: =J44 -> -2190441.894 | AA39: Actual amount credited to customers based on actual volumes and forecast Power Purchased True-Up
G40: September | H40: ='Input Data'!G30/1.041 -> 12533578.15 | I40: -0.0119 | J40: -149149.5799 | K40: ='Input Data'!Q13 -> 204085.55 | L40: -102042.775 | M40: -102042.775 | O40: -102042.775 | P40: 47106.80494 | Q40: 610463.2598 | R40: ='Input Data'!$C$80/100/12 -> 0.000475 | S40: 289.9700484 | T40: =(P31+S31)*R40 -> -40.65604703 | U40: =(P18+S18+T31)*R40 -> 431.8041868 | X40: Variance | Z40: =Z38-Z39 -> 851141.7291 | AA40: Variance to be disposed in 2024
C41: Total Customer Volumes (kWh) | D41: ='Input Data'!E39 -> 183512928 | F41: 2019 Volumes | G41: October | H41: ='Input Data'!G31/1.041 -> 13184034.32 | I41: -0.0119 | J41: -156890.0084 | K41: ='Input Data'!Q14 -> 272887.28 | L41: -136443.64 | M41: -136443.64 | O41: -136443.64 | P41: 20446.36844 | Q41: 630909.6282 | R41: ='Input Data'!$C$81/100/12 -> 0.000475 | S41: 299.6820734 | T41: =(P31+S31)*R41 -> -40.65604703 | U41: =(P18+S18+T31)*R41 -> 431.8041868 | X41: Interest on Variance | Z41: =S44+T57+U70 -> 63008.4357 | AA41: Interest on variance to be disposed in 2024
G42: November | H42: ='Input Data'!G32/1.041 -> 14830822.29 | I42: -0.0119 | J42: -176486.7852 | K42: ='Input Data'!Q15 -> 167410.76 | L42: -83705.38 | M42: -83705.38 | O42: -83705.38 | P42: 92781.40521 | Q42: 723691.0334 | R42: ='Input Data'!$C$81/100/12 -> 0.000475 | S42: 343.7532409 | T42: =(P31+S31)*R42 -> -40.65604703 | U42: =(P18+S18+T31)*R42 -> 431.8041868
C43: Power Purchased True-Up-2021 ($/kWh) | E43: =ROUND(-E39/D41,4) -> -0.0119 | G43: December | H43: ='Input Data'!G33/1.041 -> 17383745.44 | I43: -0.0119 | J43: -206866.5707 | K43: ='Input Data'!Q16 -> 158831.75 | L43: -79415.875 | M43: -79415.875 | O43: -79415.875 | P43: 127450.6957 | Q43: 851141.7291 | R43: ='Input Data'!$C$81/100/12 -> 0.000475 | S43: 404.2923213 | T43: =(P31+S31)*R43 -> -40.65604703 | U43: =(P18+S18+T31)*R43 -> 431.8041868
G44: Total | H44: =SUM(H32:H43) -> 179332075.9 | J44: =SUM(J32:J43) -> -2190441.894 | K44: 2678600.33 | L44: -1339300.165 | M44: -1339300.165 | N44: 0 | O44: -1339300.165 | P44: 851141.7291 | S44: =SUM(S32:S43) -> 2752.43947 | T44: =SUM(T32:T43) -> -487.8725644 | U44: =SUM(U32:U43) -> 5181.650241
B45: 2022 | G45: January | H45: ='Input Data'!H22/1.041 -> 20956084.53 | I45: =I43 -> -0.0119 | J45: =H45*I45 -> -249377.406 | K45: ='Input Data'!T5 -> 37319.14 | L45: =-K45/2 -> -18659.57 | M45: =-K45/2 -> -18659.57 | O45: =M45+N45 -> -18659.57 | P45: =O45-J45 -> 230717.836 | Q45: =P45 -> 230717.836 | R45: ='Input Data'!$C$82/100/12 -> 0.000475 | S45: =Q45*R45 -> 109.5909721 | T45: =(P44+S44)*R45 -> 405.5997301 | U45: =(P31+S31+T44)*R45 -> -40.8877865
C46: Forecast Waltham Volumes (kWh) | D46: ='Input Data'!L57 -> 39935906 | F46: 4-Year Avg. | G46: February | H46: ='Input Data'!H23/1.041 -> 17871165.23 | I46: =I45 -> -0.0119 | J46: -212666.8662 | K46: ='Input Data'!T6 -> 33610.07 | L46: -16805.035 | M46: -16805.035 | O46: -16805.035 | P46: 195861.8312 | Q46: =P46+Q45 -> 426579.6671 | R46: ='Input Data'!$C$82/100/12 -> 0.000475 | S46: 202.6253419 | T46: =(P44+S44)*R46 -> 405.5997301 | U46: =(P31+S31+T44)*R46 -> -40.8877865 | W46: Summary
C47: Forecast GA ($/kWh) | D47: ='Input Data'!C64/1000 -> 0.06878 | F47: Oct 2021 RPP Report | G47: March | H47: ='Input Data'!H24/1.041 -> 16783453.41 | I47: =I46 -> -0.0119 | J47: -199723.0956 | K47: ='Input Data'!T7 -> 174539.45 | L47: -87269.725 | M47: -87269.725 | O47: -87269.725 | P47: 112453.3706 | Q47: 539033.0377 | R47: ='Input Data'!$C$82/100/12 -> 0.000475 | S47: 256.0406929 | T47: =(P44+S44)*R47 -> 405.5997301 | U47: =(P31+S31+T44)*R47 -> -40.8877865 | X47: GA Savings | Z47: =K57 -> 2033179.04 | AA47: Total GA avoided (Waltham kWh * GA $/kWh)
C48: Total Forecast GA Savings ($) | D48: =D46*D47 -> 2746791.615 | G48: April | H48: ='Input Data'!H25/1.041 -> 13851003.84 | I48: =I47 -> -0.0119 | J48: -164826.9457 | K48: ='Input Data'!T8 -> 344332.83 | L48: -172166.415 | M48: -172166.415 | O48: -172166.415 | P48: -7339.469275 | Q48: 531693.5684 | R48: ='Input Data'!$C$83/100/12 -> 0.00085 | S48: 451.9395332 | T48: =(P44+S44)*R48 -> 725.8100433 | U48: =(P31+S31+T44)*R48 -> -73.16761795 | X48: Purchased Power-Adjustment | Z48: =L57 -> -1016589.52 | AA48: Paid to Brookfield
C49: Forecast net GA Savings ($) | E49: =D48/2 -> 1373395.807 | F49: Total savings * 50% | G49: May | H49: ='Input Data'!H26/1.041 -> 13145569.64 | I49: =E56 -> -0.0026 | J49: -34178.48108 | K49: ='Input Data'!T9 -> 480129.94 | L49: -240064.97 | M49: -240064.97 | N49: =-($E$50+$E$51)/12 -> 76186.92467 | O49: -163878.0453 | P49: -129699.5643 | Q49: 401994.0042 | R49: ='Input Data'!$C$83/100/12 -> 0.00085 | S49: 341.6949036 | T49: =(P44+S44)*R49 -> 725.8100433 | U49: =(P31+S31+T44)*R49 -> -73.16761795 | X49: Customer Share | Y49: =M57 -> -1016589.52 | AA49: Amount that should be credited to customers
C50: Variance from previous years ($) | E50: =-Z14 -> -884994.67 | F50: Variance from 2019 | G50: June | H50: ='Input Data'!H27/1.041 -> 13412040.35 | I50: =I49 -> -0.0026 | J50: -34871.3049 | K50: ='Input Data'!T10 -> 443166.68 | L50: -221583.34 | M50: -221583.34 | N50: =-($E$50+$E$51)/12 -> 76186.92467 | O50: -145396.4153 | P50: -110525.1104 | Q50: 291468.8938 | R50: ='Input Data'!$C$83/100/12 -> 0.00085 | S50: 247.7485597 | T50: =(P44+S44)*R50 -> 725.8100433 | U50: =(P31+S31+T44)*R50 -> -73.16761795 | X50: Variance Disposition | Y50: =-(E50+E51) -> 914243.0961 | AA50: Adjustment for earlier variances (3-year lag)
C51: Interest on variance ($) | E51: =-Z15 -> -29248.42606 | F51: Int. on 2019 var. | G51: July | H51: ='Input Data'!H28/1.041 -> 15239493.76 | I51: -0.0026 | J51: -39622.68377 | K51: ='Input Data'!T11 -> 164396.14 | L51: -82198.07 | M51: -82198.07 | N51: 76186.92467 | O51: -6011.145327 | P51: 33611.53844 | Q51: 325080.4322 | R51: ='Input Data'!$C$84/100/12 -> 0.001833333333 | S51: 595.9807924 | T51: =(P44+S44)*R51 -> 1565.472642 | U51: =(P31+S31+T44)*R51 -> -157.8125093 | X51: Owed to Customers | Z51: =Y50+Y49 -> -102346.4239 | AA51: Amount to be credited to customers including variances
C52: Forecast Power Purchased True-Up Balance ($) | E52: =SUM(E49:E51) -> 459152.7113 | G52: August | H52: ='Input Data'!H29/1.041 -> 15103622.48 | I52: -0.0026 | J52: -39269.41844 | K52: ='Input Data'!T12 -> 13161.18 | L52: -6580.59 | M52: -6580.59 | N52: 76186.92467 | O52: 69606.33467 | P52: 108875.7531 | Q52: 433956.1853 | R52: ='Input Data'!$C$84/100/12 -> 0.001833333333 | S52: 795.5863398 | T52: =(P44+S44)*R52 -> 1565.472642 | U52: =(P31+S31+T44)*R52 -> -157.8125093 | X52: Credited to Customers | Z52: =J57 -> -1127912.955 | AA52: Actual amount credited to customers based on actual volumes and forecast Power Purchased True-Up
G53: September | H53: ='Input Data'!H30/1.041 -> 12895567.72 | I53: -0.0026 | J53: -33528.47608 | K53: ='Input Data'!T13 -> 140814 | L53: -70407 | M53: -70407 | N53: 76186.92467 | O53: 5779.924673 | P53: 39308.40075 | Q53: 473264.5861 | R53: ='Input Data'!$C$84/100/12 -> 0.001833333333 | S53: 867.6517411 | T53: =(P44+S44)*R53 -> 1565.472642 | U53: =(P31+S31+T44)*R53 -> -157.8125093 | X53: Variance | Z53: =Z51-Z52 -> 1025566.532 | AA53: Variance to be disposed in 2025
C54: Total Customer Volumes (kWh) | D54: ='Input Data'!F39 -> 178353238 | F54: 2020 Volumes | G54: October | H54: ='Input Data'!H31/1.041 -> 13363251.68 | I54: -0.0026 | J54: -34744.45437 | K54: ='Input Data'!T14 -> 139906.35 | L54: -69953.175 | M54: -69953.175 | N54: 76186.92467 | O54: 6233.749673 | P54: 40978.20404 | Q54: 514242.7901 | R54: ='Input Data'!$C$85/100/12 -> 0.003225 | S54: 1658.432998 | T54: =(P44+S44)*R54 -> 2753.808694 | U54: =(P31+S31+T44)*R54 -> -277.6065504 | X54: Interest on Variance | Z54: =S57+T70+U83 -> 88836.55674 | AA54: Interest on variance to be disposed in 2025
G55: November | H55: ='Input Data'!H32/1.041 -> 15431694.65 | I55: -0.0026 | J55: -40122.40609 | K55: ='Input Data'!T15 -> 29347.51 | L55: -14673.755 | M55: -14673.755 | N55: 76186.92467 | O55: 61513.16967 | P55: 101635.5758 | Q55: 615878.3659 | R55: ='Input Data'!$C$85/100/12 -> 0.003225 | S55: 1986.20773 | T55: =(P44+S44)*R55 -> 2753.808694 | U55: =(P31+S31+T44)*R55 -> -277.6065504
C56: Power Purchased True-Up-2022 ($/kWh) | E56: =ROUND(-E52/D54,4) -> -0.0026 | G56: December | H56: ='Input Data'!H33/1.041 -> 17300545.12 | I56: -0.0026 | J56: -44981.41731 | K56: ='Input Data'!T16 -> 32455.75 | L56: -16227.875 | M56: -16227.875 | N56: 76186.92467 | O56: 59959.04967 | P56: 104940.467 | Q56: 720818.8329 | R56: ='Input Data'!$C$85/100/12 -> 0.003225 | S56: 2324.640736 | T56: =(P44+S44)*R56 -> 2753.808694 | U56: =(P31+S31+T44)*R56 -> -277.6065504
G57: Total | H57: =SUM(H45:H56) -> 185353492.4 | J57: =SUM(J45:J56) -> -1127912.955 | K57: 2033179.04 | L57: -1016589.52 | M57: -1016589.52 | N57: 609495.3974 | O57: -407094.1226 | P57: 720818.8329 | S57: =SUM(S45:S56) -> 9838.140341 | T57: =SUM(T45:T56) -> 16352.07333 | U57: =SUM(U45:U56) -> -1648.423393
B58: 2023 | G58: January | H58: ='Input Data'!I22/1.041 -> 17577309.12 | I58: =E56 -> -0.0026 | J58: =H58*I58 -> -45701.0037 | K58: ='Input Data'!W5 -> 138799.73 | L58: =-K58/2 -> -69399.865 | M58: =-K58/2 -> -69399.865 | N58: 76186.92467 | O58: =M58+N58 -> 6787.059673 | P58: =O58-J58 -> 52488.06338 | Q58: =P58 -> 52488.06338 | R58: ='Input Data'!$C$86/100/12 -> 0.003941666667 | S58: =Q58*R58 -> 206.8904498 | T58: =(P57+S57)*R58 -> 2880.006236 | U58: =(P44+S44+T57)*R58 -> 3430.220604
C59: Forecast Waltham Volumes (kWh) | D59: ='Input Data'!M57 -> 37172348.5 | F59: 4-Year Avg. | G59: February | H59: ='Input Data'!I23/1.041 -> 16452589.75 | I59: =I58 -> -0.0026 | J59: -42776.73335 | K59: ='Input Data'!W6 -> 166356.76 | L59: -83178.38 | M59: -83178.38 | N59: 76186.92467 | O59: -6991.455327 | P59: 35785.27802 | Q59: =P59+Q58 -> 88273.3414 | R59: ='Input Data'!$C$86/100/12 -> 0.003941666667 | S59: 347.9440873 | T59: =(P57+S57)*R59 -> 2880.006236 | U59: =(P44+S44+T57)*R59 -> 3430.220604 | W59: Summary
C60: Forecast GA ($/kWh) | D60: ='Input Data'!C65/1000 -> 0.03604 | F60: Oct 2022 RPP Report | G60: March | H60: ='Input Data'!I24/1.041 -> 16347903.92 | I60: =I59 -> -0.0026 | J60: -42504.55019 | K60: ='Input Data'!W7 -> 226199.54 | L60: -113099.77 | M60: -113099.77 | N60: 76186.92467 | O60: -36912.84533 | P60: 5591.704863 | Q60: 93865.04626 | R60: ='Input Data'!$C$86/100/12 -> 0.003941666667 | S60: 369.984724 | T60: =(P57+S57)*R60 -> 2880.006236 | U60: =(P44+S44+T57)*R60 -> 3430.220604 | X60: GA Savings | Z60: =K70 -> 2510607.29 | AA60: Total GA avoided (Waltham kWh * GA $/kWh)
C61: Total Forecast GA Savings ($) | D61: =D59*D60 -> 1339691.44 | G61: April | H61: ='Input Data'!I25/1.041 -> 13566437.6 | I61: =I60 -> -0.0026 | J61: -35272.73776 | K61: ='Input Data'!W8 -> 419291.46 | L61: -209645.73 | M61: -209645.73 | N61: 76186.92467 | O61: -133458.8053 | P61: -98186.06757 | Q61: -4321.021308 | R61: ='Input Data'!$C$87/100/12 -> 0.00415 | S61: -17.93223843 | T61: =(P57+S57)*R61 -> 3032.226439 | U61: =(P44+S44+T57)*R61 -> 3611.521904 | X61: Purchased Power-Adjustment | Z61: =L70 -> -1255303.645 | AA61: Paid to Brookfield
C62: Forecast net GA Savings ($) | E62: =D61/2 -> 669845.72 | F62: Total savings * 50% | G62: May | H62: ='Input Data'!I26/1.041 -> 12990801.1 | I62: =E69 -> -0.0042 | J62: -54561.3646 | K62: ='Input Data'!W9 -> 504470.69 | L62: -252235.345 | M62: -252235.345 | N62: =-($E$63+$E$64)/12 -> -7310.664493 | O62: -259546.0095 | P62: -204984.6449 | Q62: -209305.6662 | R62: ='Input Data'!$C$87/100/12 -> 0.00415 | S62: -868.6185147 | T62: =(P57+S57)*R62 -> 3032.226439 | U62: =(P44+S44+T57)*R62 -> 3611.521904 | X62: Customer Share | Y62: =M70 -> -1255303.645 | AA62: Amount that should be credited to customers
C63: Variance from previous years ($) | E63: =-Z27 -> 87032.72803 | F63: Variance from 2020 | G63: June | H63: ='Input Data'!I27/1.041 -> 0 | I63: =I62 -> -0.0042 | J63: 0 | K63: ='Input Data'!W10 -> 208072.2 | L63: -104036.1 | M63: -104036.1 | N63: =-($E$63+$E$64)/12 -> -7310.664493 | O63: -111346.7645 | P63: -111346.7645 | Q63: -320652.4307 | R63: ='Input Data'!$C$87/100/12 -> 0.00415 | S63: -1330.707587 | T63: =(P57+S57)*R63 -> 3032.226439 | U63: =(P44+S44+T57)*R63 -> 3611.521904 | X63: Variance Disposition | Y63: =-(E63+E64) -> -87727.97392 | AA63: Adjustment for earlier variances (3-year lag)
C64: Interest on variance ($) | E64: =-Z28 -> 695.2458884 | F64: Int. on 2020 var. | G64: July | H64: ='Input Data'!I28/1.041 -> 0 | I64: -0.0042 | J64: 0 | K64: ='Input Data'!W11 -> 256400.04 | L64: -128200.02 | M64: -128200.02 | N64: =-($E$63+$E$64)/12 -> -7310.664493 | O64: -135510.6845 | P64: -135510.6845 | Q64: -456163.1152 | R64: ='Input Data'!$C$88/100/12 -> 0.00415 | S64: -1893.076928 | T64: =(P57+S57)*R64 -> 3032.226439 | U64: =(P44+S44+T57)*R64 -> 3611.521904 | X64: Owed to Customers | Z64: =Y63+Y62 -> -1343031.619 | AA64: Amount to be credited to customers including variances
C65: Forecast Power Purchased True-Up Balance ($) | E65: =SUM(E62:E64) -> 757573.6939 | G65: August | H65: ='Input Data'!I29/1.041 -> 0 | I65: -0.0042 | J65: 0 | K65: ='Input Data'!W12 -> 388490.9 | L65: -194245.45 | M65: -194245.45 | N65: -7310.664493 | O65: -201556.1145 | P65: -201556.1145 | Q65: -657719.2297 | R65: ='Input Data'!$C$88/100/12 -> 0.00415 | S65: -2729.534803 | T65: =(P57+S57)*R65 -> 3032.226439 | U65: =(P44+S44+T57)*R65 -> 3611.521904 | X65: Credited to Customers | Z65: =J70 -> -220816.3896 | AA65: Actual amount credited to customers based on actual volumes and forecast Power Purchased True-Up
G66: September | H66: ='Input Data'!I30/1.041 -> 0 | I66: -0.0042 | J66: 0 | K66: ='Input Data'!W13 -> 202525.97 | L66: -101262.985 | M66: -101262.985 | N66: -7310.664493 | O66: -108573.6495 | P66: -108573.6495 | Q66: -766292.8792 | R66: ='Input Data'!$C$88/100/12 -> 0.00415 | S66: -3180.115449 | T66: =(P57+S57)*R66 -> 3032.226439 | U66: =(P44+S44+T57)*R66 -> 3611.521904 | X66: Variance | Z66: =Z64-Z65 -> -1122215.229 | AA66: Variance to be disposed in 2026
C67: Total Customer Volumes (kWh) | D67: ='Input Data'!G39 -> 182112496 | F67: 2021 Volumes | G67: October | H67: ='Input Data'!I31/1.041 -> 0 | I67: -0.0042 | J67: 0 | K67: ='Input Data'!W14 -> 0 | L67: 0 | M67: 0 | N67: -7310.664493 | O67: -7310.664493 | P67: -7310.664493 | Q67: -773603.5437 | R67: ='Input Data'!$C$89/100/12 -> 0.004575 | S67: -3539.236212 | T67: =(P57+S57)*R67 -> 3342.755652 | U67: =(P44+S44+T57)*R67 -> 3981.376557 | X67: Interest on Variance | Z67: =S70+T83+U96 -> -110971.2305 | AA67: Interest on variance to be disposed in 2026
G68: November | H68: ='Input Data'!I32/1.041 -> 0 | I68: -0.0042 | J68: 0 | K68: ='Input Data'!W15 -> 0 | L68: 0 | M68: 0 | N68: -7310.664493 | O68: -7310.664493 | P68: -7310.664493 | Q68: -780914.2082 | R68: ='Input Data'!$C$89/100/12 -> 0.004575 | S68: -3572.682502 | T68: =(P57+S57)*R68 -> 3342.755652 | U68: =(P44+S44+T57)*R68 -> 3981.376557
C69: Power Purchased True-Up-2023 ($/kWh) | E69: =ROUND(-E65/D67,4) -> -0.0042 | G69: December | H69: ='Input Data'!I33/1.041 -> 0 | I69: -0.0042 | J69: 0 | K69: ='Input Data'!W16 -> 0 | L69: 0 | M69: 0 | N69: -7310.664493 | O69: -7310.664493 | P69: -7310.664493 | Q69: -788224.8727 | R69: ='Input Data'!$C$89/100/12 -> 0.004575 | S69: -3606.128792 | T69: =(P57+S57)*R69 -> 3342.755652 | U69: =(P44+S44+T57)*R69 -> 3981.376557
G70: Total | H70: =SUM(H58:H69) -> 76935041.48 | J70: =SUM(J58:J69) -> -220816.3896 | K70: 2510607.29 | L70: -1255303.645 | M70: -1255303.645 | N70: 246262.3827 | O70: -1009041.262 | P70: -788224.8727 | S70: =SUM(S58:S69) -> -19813.21377 | T70: =SUM(T58:T69) -> 36861.6443 | U70: =SUM(U58:U69) -> 43903.92291
R71: ='Input Data'!$C$89/100/12 -> 0.004575 | T71: =(P70+S70)*R71 -> -3696.774245 | U71: =(P57+S57+T70)*R71 -> 3511.397675
R72: ='Input Data'!$C$89/100/12 -> 0.004575 | T72: =(P70+S70)*R72 -> -3696.774245 | U72: =(P57+S57+T70)*R72 -> 3511.397675
R73: ='Input Data'!$C$89/100/12 -> 0.004575 | T73: =(P70+S70)*R73 -> -3696.774245 | U73: =(P57+S57+T70)*R73 -> 3511.397675
R74: ='Input Data'!$C$89/100/12 -> 0.004575 | T74: =(P70+S70)*R74 -> -3696.774245 | U74: =(P57+S57+T70)*R74 -> 3511.397675
R75: ='Input Data'!$C$89/100/12 -> 0.004575 | T75: =(P70+S70)*R75 -> -3696.774245 | U75: =(P57+S57+T70)*R75 -> 3511.397675
R76: ='Input Data'!$C$89/100/12 -> 0.004575 | T76: =(P70+S70)*R76 -> -3696.774245 | U76: =(P57+S57+T70)*R76 -> 3511.397675
R77: ='Input Data'!$C$89/100/12 -> 0.004575 | T77: =(P70+S70)*R77 -> -3696.774245 | U77: =(P57+S57+T70)*R77 -> 3511.397675
R78: ='Input Data'!$C$89/100/12 -> 0.004575 | T78: =(P70+S70)*R78 -> -3696.774245 | U78: =(P57+S57+T70)*R78 -> 3511.397675
R79: ='Input Data'!$C$89/100/12 -> 0.004575 | T79: =(P70+S70)*R79 -> -3696.774245 | U79: =(P57+S57+T70)*R79 -> 3511.397675
R80: ='Input Data'!$C$89/100/12 -> 0.004575 | T80: =(P70+S70)*R80 -> -3696.774245 | U80: =(P57+S57+T70)*R80 -> 3511.397675
R81: ='Input Data'!$C$89/100/12 -> 0.004575 | T81: =(P70+S70)*R81 -> -3696.774245 | U81: =(P57+S57+T70)*R81 -> 3511.397675
R82: ='Input Data'!$C$89/100/12 -> 0.004575 | T82: =(P70+S70)*R82 -> -3696.774245 | U82: =(P57+S57+T70)*R82 -> 3511.397675
T83: =SUM(T71:T82) -> -44361.29094 | U83: =SUM(U71:U82) -> 42136.7721
R84: ='Input Data'!$C$89/100/12 -> 0.004575 | T84: =(P83+S83)*R84 -> 0 | U84: =(P70+S70+T83)*R84 -> -3899.727151
R85: ='Input Data'!$C$89/100/12 -> 0.004575 | T85: =(P83+S83)*R85 -> 0 | U85: =(P70+S70+T83)*R85 -> -3899.727151
R86: ='Input Data'!$C$89/100/12 -> 0.004575 | T86: =(P83+S83)*R86 -> 0 | U86: =(P70+S70+T83)*R86 -> -3899.727151
R87: ='Input Data'!$C$89/100/12 -> 0.004575 | T87: =(P83+S83)*R87 -> 0 | U87: =(P70+S70+T83)*R87 -> -3899.727151
R88: ='Input Data'!$C$89/100/12 -> 0.004575 | T88: =(P83+S83)*R88 -> 0 | U88: =(P70+S70+T83)*R88 -> -3899.727151
R89: ='Input Data'!$C$89/100/12 -> 0.004575 | T89: =(P83+S83)*R89 -> 0 | U89: =(P70+S70+T83)*R89 -> -3899.727151
R90: ='Input Data'!$C$89/100/12 -> 0.004575 | T90: =(P83+S83)*R90 -> 0 | U90: =(P70+S70+T83)*R90 -> -3899.727151
R91: ='Input Data'!$C$89/100/12 -> 0.004575 | T91: =(P83+S83)*R91 -> 0 | U91: =(P70+S70+T83)*R91 -> -3899.727151
R92: ='Input Data'!$C$89/100/12 -> 0.004575 | T92: =(P83+S83)*R92 -> 0 | U92: =(P70+S70+T83)*R92 -> -3899.727151
R93: ='Input Data'!$C$89/100/12 -> 0.004575 | T93: =(P83+S83)*R93 -> 0 | U93: =(P70+S70+T83)*R93 -> -3899.727151
R94: ='Input Data'!$C$89/100/12 -> 0.004575 | T94: =(P83+S83)*R94 -> 0 | U94: =(P70+S70+T83)*R94 -> -3899.727151
R95: ='Input Data'!$C$89/100/12 -> 0.004575 | T95: =(P83+S83)*R95 -> 0 | U95: =(P70+S70+T83)*R95 -> -3899.727151
T96: =SUM(T84:T95) -> 0 | U96: =SUM(U84:U95) -> -46796.72582

Sheet Alt. Historic Summary
H1: Actuals are incomplete
C2: Calendar Year | D2: 2019 | E2: 2020 | F2: 2021 | G2: 2022 | H2: 2023
B3: Power Purchased True-Up Calculation
C4: Forecast Global Adjustment ($/kWh) | D4: ='Alternate Historic PP True-Up'!D9 -> 0.10222 | E4: ='Alternate Historic PP True-Up'!D21 -> 0.10694 | F4: ='Alternate Historic PP True-Up'!D34 -> 0.10947 | G4: ='Alternate Historic PP True-Up'!D47 -> 0.06878 | H4: ='Alternate Historic PP True-Up'!D60 -> 0.03604 | I4: Forecast (RPP Report)
C5: Forecast Waltham Volumes (kWh) | D5: ='Alternate Historic PP True-Up'!D8 -> 47853390 | E5: ='Alternate Historic PP True-Up'!D20 -> 44476067 | F5: ='Alternate Historic PP True-Up'!D33 -> 39862344.67 | G5: ='Alternate Historic PP True-Up'!D46 -> 39935906 | H5: ='Alternate Historic PP True-Up'!D59 -> 37172348.5 | I5: Forecast (3-year historic average)
C7: Forecast net GA Savings | D7: ='Alternate Historic PP True-Up'!E11 -> 2445786.763 | E7: ='Alternate Historic PP True-Up'!E23 -> 2378135.302 | F7: ='Alternate Historic PP True-Up'!E36 -> 2181865.435 | G7: ='Alternate Historic PP True-Up'!E49 -> 1373395.807 | H7: ='Alternate Historic PP True-Up'!E62 -> 669845.72 | I7: (= GA$/kWh * Forecast volumes * 0.5)
C8: Variance Disposal (2-year lag) | G8: =D25 -> -914243.0961 | H8: =E25 -> 87727.97392 | I8: Actual (calculated below)
C9: Power Purchased True-Up Balance | D9: =D7+D8 -> 2445786.763 | E9: =E7+E8 -> 2378135.302 | F9: =F7+F8 -> 2181865.435 | G9: =G7+G8 -> 459152.7113 | H9: =H7+H8 -> 757573.6939 | I9: (=Net GA Savings + Variance Disposal)
C11: Forecast Total Customer kWh | D11: ='Alternate Historic PP True-Up'!D14 -> 177934181 | E11: ='Alternate Historic PP True-Up'!D28 -> 185198705 | F11: ='Alternate Historic PP True-Up'!D41 -> 183512928 | G11: ='Alternate Historic PP True-Up'!D54 -> 178353238 | H11: ='Alternate Historic PP True-Up'!D67 -> 182112496 | I11: Forecast (actual of last year)
C13: Power Purchased True-Up ($/kWh) | D13: =-D9/D11 -> -0.01374545773 | E13: =-E9/E11 -> -0.01284099315 | F13: =-F9/F11 -> -0.01188943721 | G13: -0.002574400759 | H13: -0.004159921535 | I13: (= Power Purchased True-Up Balance / customer volumes)
B14: Variances
C15: Actual customer share of GA savings | D15: =-'Alternate Historic PP True-Up'!Y10 -> 1645256.35 | E15: =-'Alternate Historic PP True-Up'!Y23 -> 2437392.29 | F15: =-'Alternate Historic PP True-Up'!Y36 -> 1339300.165 | G15: =-'Alternate Historic PP True-Up'!Y49 -> 1016589.52 | H15: =-'Alternate Historic PP True-Up'!Y62 -> 1255303.645 | I15: Actual
C16: Variance to include in rate | G16: =D25 -> -914243.0961 | H16: =E25 -> 87727.97392 | I16: Actual (calculated below)
C17: Actual customer share inc'l variances | D17: =D15+D16 -> 1645256.35 | E17: =E15+E16 -> 2437392.29 | F17: 1339300.165 | G17: 102346.4239 | H17: 1343031.619 | I17: (= Actual Net GA Savings + variance)
C19: Actual credited to customers | D19: =-'Alternate Historic PP True-Up'!Z13 -> 2530251.02 | E19: =-'Alternate Historic PP True-Up'!Z26 -> 2350359.562 | F19: =-'Alternate Historic PP True-Up'!Z39 -> 2190441.894 | G19: =-'Alternate Historic PP True-Up'!Z52 -> 1127912.955 | H19: =-'Alternate Historic PP True-Up'!Z65 -> 220816.3896 | I19: Actual
C22: Variance | D22: =D17-D19 -> -884994.67 | E22: =E17-E19 -> 87032.72803 | F22: =F17-F19 -> -851141.7291 | G22: =G17-G19 -> -1025566.532 | H22: =H17-H19 -> 1122215.229 | I22: Actual
C23: Interest on Variance | D23: =-'Alternate Historic PP True-Up'!S18 -> -11736.71922 | E23: =-'Alternate Historic PP True-Up'!S31 -> -1441.050069 | F23: =-'Alternate Historic PP True-Up'!S44 -> -2752.43947 | G23: =-'Alternate Historic PP True-Up'!S57 -> -9838.140341 | H23: =-'Alternate Historic PP True-Up'!S70 -> 19813.21377 | I23: Actual
C24: Add'l Interest before disposition | D24: =-'Alternate Historic PP True-Up'!T31-'Alternate Historic PP True-Up'!U44 -> -17511.70684 | E24: =-'Alternate Historic PP True-Up'!T44-'Alternate Historic PP True-Up'!U57 -> 2136.295957 | F24: =-'Alternate Historic PP True-Up'!T57-'Alternate Historic PP True-Up'!U70 -> -60255.99623 | G24: =-'Alternate Historic PP True-Up'!T70-'Alternate Historic PP True-Up'!U83 -> -78998.4164 | H24: =-'Alternate Historic PP True-Up'!T83-'Alternate Historic PP True-Up'!U96 -> 91158.01676 | I24: Actual
C25: Variance Total | D25: =SUM(D22:D24) -> -914243.0961 | E25: =SUM(E22:E24) -> 87727.97392 | F25: =SUM(F22:F24) -> -914150.1648 | G25: =SUM(G22:G24) -> -1114403.088 | H25: =SUM(H22:H24) -> 1233186.46
D28: =D2 -> 2019 | E28: =E2 -> 2020 | F28: 2021 | G28: 2022 | H28: 2023
B29: 1508 Power Purchased True-Up Tracking Account
C30: =C7 -> Forecast net GA Savings | D30: =D7 -> 2445786.763 | E30: =E7 -> 2378135.302 | F30: =F7 -> 2181865.435 | G30: =G7 -> 1373395.807 | H30: =H7 -> 669845.72
C31: Difference between forecast and actual | D31: =-'Alternate Historic PP True-Up'!Z12-'Alternate Historic PP True-Up'!E11 -> -800530.4129 | E31: =-'Alternate Historic PP True-Up'!Z25-'Alternate Historic PP True-Up'!E23 -> 59256.98751 | F31: =-'Alternate Historic PP True-Up'!Z38-'Alternate Historic PP True-Up'!E39 -> -842565.2703 | G31: =-'Alternate Historic PP True-Up'!Z51-'Alternate Historic PP True-Up'!E52 -> -356806.2873 | H31: =-'Alternate Historic PP True-Up'!Z64-'Alternate Historic PP True-Up'!E65 -> 585457.925
C32: =C19 -> Actual credited to customers | D32: =-D19 -> -2530251.02 | E32: =-E19 -> -2350359.562 | F32: =-F19 -> -2190441.894 | G32: =-G19 -> -1127912.955 | H32: =-H19 -> -220816.3896
C33: Variance | D33: =SUM(D30:D32) -> -884994.67 | E33: =SUM(E30:E32) -> 87032.72803 | F33: =SUM(F30:F32) -> -851141.7291 | G33: =SUM(G30:G32) -> -111323.4355 | H33: =SUM(H30:H32) -> 1034487.255
C34: Interest (in year) | D34: =D23 -> -11736.71922 | E34: =E23 -> -1441.050069 | F34: =F23 -> -2752.43947 | G34: =G23 -> -9838.140341 | H34: =H23 -> 19813.21377
C35: Interest (lag year 1) | E35: =-'Alternate Historic PP True-Up'!T31 -> -12330.0566 | F35: =-'Alternate Historic PP True-Up'!T44 -> 487.8725644 | G35: =-'Alternate Historic PP True-Up'!T57 -> -16352.07333 | H35: =-'Alternate Historic PP True-Up'!T70 -> -36861.6443
C36: Interest (lag year 2) | F36: =-'Alternate Historic PP True-Up'!U44 -> -5181.650241 | G36: =-'Alternate Historic PP True-Up'!U57 -> 1648.423393 | H36: =-'Alternate Historic PP True-Up'!U70 -> -43903.92291
C37: Variance Disposition | G37: =-(D33+D34+E35+F36) -> 914243.0961 | H37: =-(E33+E34+F35+G36) -> -87727.97392
C38: Year-End Balance | D38: =SUM(D30:D37) -> -1781726.059 | E38: =SUM(E30:E37) -> 160294.3494 | F38: =SUM(F30:F37) -> -1709729.675 | G38: =SUM(G30:G37) -> 667054.4348 | H38: =SUM(H30:H37) -> 1920294.183
